Workbook

Sheet Luchtverhitter
B2: Selectiontool | G2: Taal/Language/Sprache/Språk/Jazyk | H2: 0 | I2: 0 | J2: 0 | K2: Nederlands
B3: =HLOOKUP(K2,cal!E1:M2,2,FALSE) -> luchtverhitter
G4: =IF(cal!$S$7=1,"Uitvoering",IF(cal!$S$7=2,"Version",IF(cal!$S$7=3,"Ausführung",IF(cal!$S$7=4,"Version",IF(cal!$S$7=5,"Modell",IF(cal!$S$7=6,"Montaje",IF(cal!$S$7=7,"Version",IF(cal!$S$7=8,"Verze",IF(cal!$S$7=9,"ExtraTaal1",IF(cal!$S$7=10,"ExtraTaal2",IF(cal!$S$7=11,"ExtraTaal3",))))))))))) -> Uitvoering | K4: 021/031
B6: =cal!B7 -> Temperaturen
B7: =cal!B8 -> Verwarmen: | G7: =cal!G8 -> Koelen:
B8: =cal!B9 -> Water aanvoer | C8: =cal!C9 -> 0 | D8: =cal!D9 -> 0 | E8: 55 | F8: =cal!F9 -> °C | G8: =cal!G9 -> Water aanvoer | H8: =cal!H9 -> 0 | I8: =cal!I9 -> 0 | J8: =cal!J9 -> 0 | K8: 16 | L8: =cal!L9 -> °C | M8: =cal!M9 -> Eenheidsstelsel
B9: =cal!B10 -> Water retour | C9: =cal!C10 -> 0 | D9: =cal!D10 -> 0 | E9: 45 | F9: =cal!F10 -> °C | G9: =cal!G10 -> Water retour | H9: =cal!H10 -> 0 | I9: =cal!I10 -> 0 | J9: =cal!J10 -> 0 | K9: 18 | L9: =cal!L10 -> °C
B10: =cal!B11 -> Ruimte | C10: =cal!C11 -> 0 | D10: =cal!D11 -> 0 | E10: 20 | F10: =cal!F11 -> °C | G10: =cal!G11 -> Ruimte | H10: =cal!H11 -> 0 | I10: =cal!I11 -> 0 | J10: =cal!J11 -> 0 | K10: 27 | L10: =cal!L11 -> °C
G11: =cal!G12 -> Relatieve vochtigheid | H11: =cal!H12 -> 0 | I11: =cal!I12 -> 0 | J11: =cal!J12 -> 0 | K11: 50%
D13: =cal!D14 -> 1.0000 | E13: =cal!E14 -> 1.0000 | F13: =cal!F14 -> 1.0000 | G13: =cal!G14 -> 1.0000 | H13: =cal!H14 -> 1.0000 | I13: =cal!I14 -> 1.0000 | J13: =cal!J14 -> 1.0000 | K13: =cal!K14 -> 0.0003344444444 | L13: =cal!L14 -> 0 | M13: =cal!M14 -> 1 | N13: =cal!N14 -> 1.0000
B14: =cal!B15 -> Snelheidsniveau | C14: =cal!C15 -> Stuurspanning [V] | D14: =cal!D15 -> Warmteafgifte 55/45/20 [kW] | E14: =cal!O15 -> Uitblaastemp. verwarming [°C] | F14: =cal!G15 -> Voelb. Koelcapaciteit 16/18/27 [kW] | G14: =cal!P15 -> Uitblaastemp. koeling [°C] | H14: =cal!K15 -> Geluidsdruk ** [dB(A)] | I14: =cal!L15 -> Geluidsvermogen * [dB(A)] | J14: =cal!I15 -> Toerental [u/min] | K14: =cal!M15 -> Opgenomen elektr. vermogen [W] | L14: =cal!N15 -> Luchtdebiet [m³/h]
B15: =cal!B16 -> Luchtverhitter hoogte 41 cm breedte 41 cm lengte 43 cm (Type 021)
B16: =cal!B17 -> 20% | C16: =cal!C17 -> 2 | D16: =IF($E$8<=$E$9,cal!$Z$3,cal!D17) -> 2.7 | E16: =IF($E$8<=$E$9,"",cal!O17) -> 33.4 | F16: =IF($K$8>=$K$9,cal!$Z$3,cal!G17) -> 0.9 | G16: =IF($K$8>=$K$9,"",cal!P17) -> 22.6 | H16: =cal!K17 -> 34.0 | I16: =cal!L17 -> 50.0 | J16: =cal!I17 -> 731 | K16: =cal!M17 -> 10.0 | L16: =cal!N17 -> 594
B17: =cal!B18 -> 40% | C17: =cal!C18 -> 4 | D17: =IF($E$8<=$E$9,cal!$Z$4,cal!D18) -> 3.3 | E17: =IF($E$8<=$E$9,"",cal!O18) -> 31.5 | F17: =IF($K$8>=$K$9,cal!$Z$5,cal!G18) -> 1.1 | G17: =IF($K$8>=$K$9,"",cal!P18) -> 23.2 | H17: =cal!K18 -> 42.4 | I17: =cal!L18 -> 58.4 | J17: =cal!I18 -> 984 | K17: =cal!M18 -> 20.0 | L17: =cal!N18 -> 847
B18: =cal!B19 -> 60% | C18: =cal!C19 -> 6 | D18: =IF($E$8<=$E$9,"",cal!D19) -> 3.8 | E18: =IF($E$8<=$E$9,"",cal!O19) -> 30.0 | F18: =IF($K$8>=$K$9,"",cal!G19) -> 1.3 | G18: =IF($K$8>=$K$9,"",cal!P19) -> 23.7 | H18: =cal!K19 -> 50.1 | I18: =cal!L19 -> 66.1 | J18: =cal!I19 -> 1286 | K18: =cal!M19 -> 43.0 | L18: =cal!N19 -> 1144
B19: =cal!B20 -> 80% | C19: =cal!C20 -> 8 | D19: =IF($E$8<=$E$9,"",cal!D20) -> 4.2 | E19: =IF($E$8<=$E$9,"",cal!O20) -> 29.5 | F19: =IF($K$8>=$K$9,"",cal!G20) -> 1.4 | G19: =IF($K$8>=$K$9,"",cal!P20) -> 23.9 | H19: =cal!K20 -> 53.9 | I19: =cal!L20 -> 69.9 | J19: =cal!I20 -> 1469 | K19: =cal!M20 -> 63.0 | L19: =cal!N20 -> 1325
B20: =cal!B21 -> 100% | C20: =cal!C21 -> 10 | D20: =IF($E$8<=$E$9,"",cal!D21) -> 4.4 | E20: =IF($E$8<=$E$9,"",cal!O21) -> 29.2 | F20: =IF($K$8>=$K$9,"",cal!G21) -> 1.4 | G20: =IF($K$8>=$K$9,"",cal!P21) -> 24.0 | H20: =cal!K21 -> 55.4 | I20: =cal!L21 -> 71.4 | J20: =cal!I21 -> 1559 | K20: =cal!M21 -> 76.0 | L20: =cal!N21 -> 1422
B21: =cal!B22 -> Luchtverhitter hoogte 41 cm breedte 41 cm lengte 43 cm (Type 031)
B22: =cal!B23 -> 20% | C22: =cal!C23 -> 2 | D22: =IF($E$8<=$E$9,cal!$Z$3,cal!D23) -> 3.2 | E22: =IF($E$8<=$E$9,"",cal!O23) -> 36.9 | F22: =IF($K$8>=$K$9,cal!$Z$3,cal!G23) -> 1.0 | G22: =IF($K$8>=$K$9,"",cal!P23) -> 21.4 | H22: =cal!K23 -> 33.0 | I22: =cal!L23 -> 49.0 | J22: =cal!I23 -> 731 | K22: =cal!M23 -> 11.0 | L22: =cal!N23 -> 561
B23: =cal!B24 -> 40% | C23: =cal!C24 -> 4 | D23: =IF($E$8<=$E$9,cal!$Z$4,cal!D24) -> 3.9 | E23: =IF($E$8<=$E$9,"",cal!O24) -> 34.6 | F23: =IF($K$8>=$K$9,cal!$Z$5,cal!G24) -> 1.3 | G23: =IF($K$8>=$K$9,"",cal!P24) -> 22.2 | H23: =cal!K24 -> 41.4 | I23: =cal!L24 -> 57.4 | J23: =cal!I24 -> 984 | K23: =cal!M24 -> 21.0 | L23: =cal!N24 -> 799
B24: =cal!B25 -> 60% | C24: =cal!C25 -> 6 | D24: =IF($E$8<=$E$9,"",cal!D25) -> 4.8 | E24: =IF($E$8<=$E$9,"",cal!O25) -> 33.3 | F24: =IF($K$8>=$K$9,"",cal!G25) -> 1.6 | G24: =IF($K$8>=$K$9,"",cal!P25) -> 22.6 | H24: =cal!K25 -> 49.0 | I24: =cal!L25 -> 65.0 | J24: =cal!I25 -> 1286 | K24: =cal!M25 -> 45.0 | L24: =cal!N25 -> 1080
B25: =cal!B26 -> 80% | C25: =cal!C26 -> 8 | D25: =IF($E$8<=$E$9,"",cal!D26) -> 5.4 | E25: =IF($E$8<=$E$9,"",cal!O26) -> 32.8 | F25: =IF($K$8>=$K$9,"",cal!G26) -> 1.8 | G25: =IF($K$8>=$K$9,"",cal!P26) -> 22.8 | H25: =cal!K26 -> 52.0 | I25: =cal!L26 -> 68.0 | J25: =cal!I26 -> 1469 | K25: =cal!M26 -> 65.0 | L25: =cal!N26 -> 1251
B26: =cal!B27 -> 100% | C26: =cal!C27 -> 10 | D26: =IF($E$8<=$E$9,"",cal!D27) -> 5.8 | E26: =IF($E$8<=$E$9,"",cal!O27) -> 32.8 | F26: =IF($K$8>=$K$9,"",cal!G27) -> 1.9 | G26: =IF($K$8>=$K$9,"",cal!P27) -> 22.8 | H26: =cal!K27 -> 53.1 | I26: =cal!L27 -> 69.1 | J26: =cal!I27 -> 1559 | K26: =cal!M27 -> 79.0 | L26: =cal!N27 -> 1342
B27: =cal!B46 -> *Geluidsvermogen gemeten volgens ISO 3741:2010 | N27: v2025-07-25
B28: =cal!B47 -> **Geluidsdruk bij een aangenomen ruimtedemping van 16 dB(A)

Sheet cal (hidden)
E1: Nederlands | F1: English | G1: Deutsch | H1: Français | I1: Norsk | J1: Español | K1: Svenska | L1: Čeština | M1: ExtraTaal1 | N1: ExtraTaal2 | O1: ExtraTaal3 | X1: Luchtverhitter | AM1: =Tv_cool -> 16 | AQ1: =W12 -> 50%
E2: luchtverhitter | F2: unit heater | G2: Lufterhitzer | H2: aérotherme | I2: vifteovn | J2: calentador | K2: fläktvärmare | L2: ohřívač ventilátoru | X2: 021/031 | AM2: =Tr_cool -> 18.22222222
B3: =IF($S$7=1,NL!B3,IF(cal!$S$7=2,EN!B3,IF(cal!$S$7=3,DE!B3,IF(cal!$S$7=4,FR!B3,IF(cal!$S$7=5,NR!B3,IF(cal!$S$7=6,SP!B3,IF(cal!$S$7=7,SW!B3,IF(cal!$S$7=8,TS!B3,IF(cal!$S$7=9,ExtraTaal1!B3,IF(cal!$S$7=10,ExtraTaal2!B3,IF(cal!$S$7=11,ExtraTaal3!B3,))))))))))) -> Invulformulier | X3: 121/131 | Z3: =IF($S$7=1,NL!R16,IF(cal!$S$7=2,EN!R16,IF(cal!$S$7=3,DE!R16,IF(cal!$S$7=4,FR!R16,IF(cal!$S$7=5,NR!R16,IF(cal!$S$7=6,SP!R16,IF(cal!$S$7=7,SW!R16,IF(cal!$S$7=8,TS!R16,IF(cal!$S$7=9,ExtraTaal1!R16,IF(cal!$S$7=10,ExtraTaal2!R16,IF(cal!$S$7=11,ExtraTaal3!R16,))))))))))) -> Temp. | AA3: =IF($S$7=1,NL!Q7,IF(cal!$S$7=2,EN!Q7,IF(cal!$S$7=3,DE!Q7,IF(cal!$S$7=4,FR!Q7,IF(cal!$S$7=5,NR!Q7,IF(cal!$S$7=6,SP!Q7,IF(cal!$S$7=7,SW!Q7,IF(cal!$S$7=8,TS!Q7,IF(cal!$S$7=9,ExtraTaal1!Q7,IF(cal!$S$7=10,ExtraTaal2!Q7,IF(cal!$S$7=11,ExtraTaal3!Q7,))))))))))) -> Kopieer alle data | AM3: =Tl_cool -> 27
W4: 1 | X4: 221/231 | Z4: =IF($S$7=1,NL!R17,IF(cal!$S$7=2,EN!R17,IF(cal!$S$7=3,DE!R17,IF(cal!$S$7=4,FR!R17,IF(cal!$S$7=5,NR!R17,IF(cal!$S$7=6,SP!R17,IF(cal!$S$7=7,SW!R17,IF(cal!$S$7=8,TS!R17,IF(cal!$S$7=9,ExtraTaal1!R17,IF(cal!$S$7=10,ExtraTaal2!R17,IF(cal!$S$7=11,ExtraTaal3!R17,))))))))))) -> verw.! | AA4: =IF($S$7=1,NL!Q8,IF(cal!$S$7=2,EN!Q8,IF(cal!$S$7=3,DE!Q8,IF(cal!$S$7=4,FR!Q8,IF(cal!$S$7=5,NR!Q8,IF(cal!$S$7=6,SP!Q8,IF(cal!$S$7=7,SW!Q8,IF(cal!$S$7=8,TS!Q8,IF(cal!$S$7=9,ExtraTaal1!Q8,IF(cal!$S$7=10,ExtraTaal2!Q8,IF(cal!$S$7=11,ExtraTaal3!Q8,))))))))))) -> SI-eenheden
B5: =IF($S$7=1,NL!B5,IF(cal!$S$7=2,EN!B5,IF(cal!$S$7=3,DE!B5,IF(cal!$S$7=4,FR!B5,IF(cal!$S$7=5,NR!B5,IF(cal!$S$7=6,SP!B5,IF(cal!$S$7=7,SW!B5,IF(cal!$S$7=8,TS!B5,IF(cal!$S$7=9,ExtraTaal1!B5,IF(cal!$S$7=10,ExtraTaal2!B5,IF(cal!$S$7=11,ExtraTaal3!B5,))))))))))) -> Randvoorwaarden | X5: 321/331 | Z5: =IF($S$7=1,NL!R18,IF(cal!$S$7=2,EN!R18,IF(cal!$S$7=3,DE!R18,IF(cal!$S$7=4,FR!R18,IF(cal!$S$7=5,NR!R18,IF(cal!$S$7=6,SP!R18,IF(cal!$S$7=7,SW!R18,IF(cal!$S$7=8,TS!R18,IF(cal!$S$7=9,ExtraTaal1!R18,IF(cal!$S$7=10,ExtraTaal2!R18,IF(cal!$S$7=11,ExtraTaal3!R18,))))))))))) -> koelen! | AA5: =IF($S$7=1,NL!Q9,IF(cal!$S$7=2,EN!Q9,IF(cal!$S$7=3,DE!Q9,IF(cal!$S$7=4,FR!Q9,IF(cal!$S$7=5,NR!Q9,IF(cal!$S$7=6,SP!Q9,IF(cal!$S$7=7,SW!Q9,IF(cal!$S$7=8,TS!Q9,IF(cal!$S$7=9,ExtraTaal1!Q9,IF(cal!$S$7=10,ExtraTaal2!Q9,IF(cal!$S$7=11,ExtraTaal3!Q9,))))))))))) -> Imperiale-eenheden
X6: 421/431
B7: =IF($S$7=1,NL!B7,IF(cal!$S$7=2,EN!B7,IF(cal!$S$7=3,DE!B7,IF(cal!$S$7=4,FR!B7,IF(cal!$S$7=5,NR!B7,IF(cal!$S$7=6,SP!B7,IF(cal!$S$7=7,SW!B7,IF(cal!$S$7=8,TS!B7,IF(cal!$S$7=9,ExtraTaal1!B7,IF(cal!$S$7=10,ExtraTaal2!B7,IF(cal!$S$7=11,ExtraTaal3!B7,))))))))))) -> Temperaturen | M7: =IF($S$7=8,"Výška umístění","h_atm") -> h_atm | S7: =IF(Luchtverhitter!$K$2=cal!$E$1,1,IF(Luchtverhitter!$K$2=cal!$F$1,2,IF(Luchtverhitter!$K$2=cal!G1,3,IF(Luchtverhitter!$K$2=cal!H1,4,IF(Luchtverhitter!$K$2=cal!I1,5,IF(Luchtverhitter!$K$2=cal!J1,6,IF(Luchtverhitter!$K$2=cal!K1,7,IF(Luchtverhitter!$K$2=cal!L1,8,IF(Luchtverhitter!$K$2=cal!M1,9,IF(Luchtverhitter!$K$2=cal!N1,10,IF(Luchtverhitter!$K$2=cal!O1,11,))))))))))) -> 1
B8: =IF($S$7=1,NL!B8,IF(cal!$S$7=2,EN!B8,IF(cal!$S$7=3,DE!B8,IF(cal!$S$7=4,FR!B8,IF(cal!$S$7=5,NR!B8,IF(cal!$S$7=6,SP!B8,IF(cal!$S$7=7,SW!B8,IF(cal!$S$7=8,TS!B8,IF(cal!$S$7=9,ExtraTaal1!B8,IF(cal!$S$7=10,ExtraTaal2!B8,IF(cal!$S$7=11,ExtraTaal3!B8,))))))))))) -> Verwarmen: | G8: =IF($S$7=1,NL!G8,IF(cal!$S$7=2,EN!G8,IF(cal!$S$7=3,DE!G8,IF(cal!$S$7=4,FR!G8,IF(cal!$S$7=5,NR!G8,IF(cal!$S$7=6,SP!G8,IF(cal!$S$7=7,SW!G8,IF(cal!$S$7=8,TS!G8,IF(cal!$S$7=9,ExtraTaal1!G8,IF(cal!$S$7=10,ExtraTaal2!G8,IF(cal!$S$7=11,ExtraTaal3!G8,))))))))))) -> Koelen: | M8: =Luchtverhitter!M7 -> 0.00 | N8: =Luchtverhitter!N7 -> 0.00 | S8: Temp | W8: Temp
B9: =IF($S$7=1,NL!B9,IF(cal!$S$7=2,EN!B9,IF(cal!$S$7=3,DE!B9,IF(cal!$S$7=4,FR!B9,IF(cal!$S$7=5,NR!B9,IF(cal!$S$7=6,SP!B9,IF(cal!$S$7=7,SW!B9,IF(cal!$S$7=8,TS!B9,IF(cal!$S$7=9,ExtraTaal1!B9,IF(cal!$S$7=10,ExtraTaal2!B9,IF(cal!$S$7=11,ExtraTaal3!B9,))))))))))) -> Water aanvoer | C9: =IF($S$7=1,NL!C9,IF(cal!$S$7=2,EN!C9,IF(cal!$S$7=3,DE!C9,IF(cal!$S$7=4,FR!C9,IF(cal!$S$7=5,NR!C9,IF(cal!$S$7=6,SP!C9,IF(cal!$S$7=7,SW!C9,IF(cal!$S$7=8,TS!C9,IF(cal!$S$7=9,ExtraTaal1!C9,IF(cal!$S$7=10,ExtraTaal2!C9,IF(cal!$S$7=11,ExtraTaal3!C9,))))))))))) -> 0 | D9: =IF($S$7=1,NL!D9,IF(cal!$S$7=2,EN!D9,IF(cal!$S$7=3,DE!D9,IF(cal!$S$7=4,FR!D9,IF(cal!$S$7=5,NR!D9,IF(cal!$S$7=6,SP!D9,IF(cal!$S$7=7,SW!D9,IF(cal!$S$7=8,TS!D9,IF(cal!$S$7=9,ExtraTaal1!D9,IF(cal!$S$7=10,ExtraTaal2!D9,IF(cal!$S$7=11,ExtraTaal3!D9,))))))))))) -> 0 | E9: =Luchtverhitter!E8 -> 55 | F9: =IF($W$4=1,"°C",IF($W$4=2,"°F",)) -> °C | G9: =B9 -> Water aanvoer | H9: =IF($S$7=1,NL!H9,IF(cal!$S$7=2,EN!H9,IF(cal!$S$7=3,DE!H9,IF(cal!$S$7=4,FR!H9,)))) -> 0 | I9: =IF($S$7=1,NL!I9,IF(cal!$S$7=2,EN!I9,IF(cal!$S$7=3,DE!I9,IF(cal!$S$7=4,FR!I9,)))) -> 0 | J9: =IF($S$7=1,NL!J9,IF(cal!$S$7=2,EN!J9,IF(cal!$S$7=3,DE!J9,IF(cal!$S$7=4,FR!J9,)))) -> 0 | K9: =Luchtverhitter!K8 -> 16 | L9: =F9 -> °C | M9: =IF($S$7=1,NL!M9,IF(cal!$S$7=2,EN!M9,IF(cal!$S$7=3,DE!M9,IF(cal!$S$7=4,FR!M9,IF(cal!$S$7=5,NR!M9,IF(cal!$S$7=6,SP!M9,)))))) -> Eenheidsstelsel | N9: =IF($S$7=1,NL!N9,IF(cal!$S$7=2,EN!N9,IF(cal!$S$7=3,DE!N9,IF(cal!$S$7=4,FR!N9,IF(cal!$S$7=5,#REF!,))))) -> 0 | S9: =IF($W$4=1,E9,IF($W$4=2,(E9-32)/1.8)) -> 55.0 | W9: =IF($W$4=1,K9,IF($W$4=2,(K9-32)/1.8)) -> 16.0
B10: =IF($S$7=1,NL!B10,IF(cal!$S$7=2,EN!B10,IF(cal!$S$7=3,DE!B10,IF(cal!$S$7=4,FR!B10,IF(cal!$S$7=5,NR!B10,IF(cal!$S$7=6,SP!B10,IF(cal!$S$7=7,SW!B10,IF(cal!$S$7=8,TS!B10,IF(cal!$S$7=9,ExtraTaal1!B10,IF(cal!$S$7=10,ExtraTaal2!B10,IF(cal!$S$7=11,ExtraTaal3!B10,))))))))))) -> Water retour | C10: =IF($S$7=1,NL!C10,IF(cal!$S$7=2,EN!C10,IF(cal!$S$7=3,DE!C10,IF(cal!$S$7=4,FR!C10,IF(cal!$S$7=5,NR!C10,IF(cal!$S$7=6,SP!C10,IF(cal!$S$7=7,SW!C10,IF(cal!$S$7=8,TS!C10,IF(cal!$S$7=9,ExtraTaal1!C10,IF(cal!$S$7=10,ExtraTaal2!C10,IF(cal!$S$7=11,ExtraTaal3!C10,))))))))))) -> 0 | D10: =IF($S$7=1,NL!D10,IF(cal!$S$7=2,EN!D10,IF(cal!$S$7=3,DE!D10,IF(cal!$S$7=4,FR!D10,IF(cal!$S$7=5,NR!D10,IF(cal!$S$7=6,SP!D10,IF(cal!$S$7=7,SW!D10,IF(cal!$S$7=8,TS!D10,IF(cal!$S$7=9,ExtraTaal1!D10,IF(cal!$S$7=10,ExtraTaal2!D10,IF(cal!$S$7=11,ExtraTaal3!D10,))))))))))) -> 0 | E10: =Luchtverhitter!E9 -> 45 | F10: =F9 -> °C | G10: =B10 -> Water retour | H10: =IF($S$7=1,NL!H10,IF(cal!$S$7=2,EN!H10,IF(cal!$S$7=3,DE!H10,IF(cal!$S$7=4,FR!H10,)))) -> 0 | I10: =IF($S$7=1,NL!I10,IF(cal!$S$7=2,EN!I10,IF(cal!$S$7=3,DE!I10,IF(cal!$S$7=4,FR!I10,)))) -> 0 | J10: =IF($S$7=1,NL!J10,IF(cal!$S$7=2,EN!J10,IF(cal!$S$7=3,DE!J10,IF(cal!$S$7=4,FR!J10,)))) -> 0 | K10: =Luchtverhitter!K9 -> 18 | L10: =F9 -> °C | S10: =IF($W$4=1,E10,IF($W$4=2,(E10-32)/1.8)) -> 45.0 | W10: =IF($W$4=1,K10,IF($W$4=2,(K10-32)/1.8)) -> 18.2 | Y10: p_atm | Z10: h[mm] | AA10: cf_h | AB10: dt og | AC10: dt nieuw heating | AD10: dt koeling | AI10: checking for condensation cooling
B11: =IF($S$7=1,NL!B11,IF(cal!$S$7=2,EN!B11,IF(cal!$S$7=3,DE!B11,IF(cal!$S$7=4,FR!B11,IF(cal!$S$7=5,NR!B11,IF(cal!$S$7=6,SP!B11,IF(cal!$S$7=7,SW!B11,IF(cal!$S$7=8,TS!B11,IF(cal!$S$7=9,ExtraTaal1!B11,IF(cal!$S$7=10,ExtraTaal2!B11,IF(cal!$S$7=11,ExtraTaal3!B11,))))))))))) -> Ruimte | C11: =IF($S$7=1,NL!C11,IF(cal!$S$7=2,EN!C11,IF(cal!$S$7=3,DE!C11,IF(cal!$S$7=4,FR!C11,IF(cal!$S$7=5,NR!C11,IF(cal!$S$7=6,SP!C11,IF(cal!$S$7=7,SW!C11,IF(cal!$S$7=8,TS!C11,IF(cal!$S$7=9,ExtraTaal1!C11,IF(cal!$S$7=10,ExtraTaal2!C11,IF(cal!$S$7=11,ExtraTaal3!C11,))))))))))) -> 0 | D11: =IF($S$7=1,NL!D11,IF(cal!$S$7=2,EN!D11,IF(cal!$S$7=3,DE!D11,IF(cal!$S$7=4,FR!D11,IF(cal!$S$7=5,NR!D11,IF(cal!$S$7=6,SP!D11,IF(cal!$S$7=7,SW!D11,IF(cal!$S$7=8,TS!D11,IF(cal!$S$7=9,ExtraTaal1!D11,IF(cal!$S$7=10,ExtraTaal2!D11,IF(cal!$S$7=11,ExtraTaal3!D11,))))))))))) -> 0 | E11: =Luchtverhitter!E10 -> 20 | F11: =F9 -> °C | G11: =B11 -> Ruimte | H11: =IF($S$7=1,NL!H11,IF(cal!$S$7=2,EN!H11,IF(cal!$S$7=3,DE!H11,IF(cal!$S$7=4,FR!H11,)))) -> 0 | K11: =Luchtverhitter!K10 -> 27 | L11: =F9 -> °C | S11: =IF($W$4=1,E11,IF($W$4=2,(E11-32)/1.8)) -> 20.0 | W11: =IF($W$4=1,K11,IF($W$4=2,(K11-32)/1.8)) -> 27.0 | Y11: =IF($W$4=1,(101325*(1-((0.0065*M8)/(288.15)))^((9.81*0.028964)/(8.31447*0.0065))),IF($W$4=2,(101325*(1-((0.0065*(M8*0.3048))/(288.15)))^((9.81*0.028964)/(8.31447*0.0065))))) -> 101325 | Z11: =IF($W$4=1,M8/1000,IF($W$4=2,M8*0.0003048)) -> 0 | AA11: =-(0.000265264729874266*Z11^6)+(0.000957582908802335*Z11^5)+(0.00470250661483425*Z11^4)-(0.0298716926548353*Z11^3)+(0.0557086806557086*Z11^2)-(0.0484008125693582*Z11)+1 -> 1 | AB11: =(90+70)/2-15 -> 65 | AC11: =((E9+E10)/2)-E11 -> 30 | AD11: =K11-((K9+K10)/2) -> 9.888888889 | AI11: =IF((237.3*LN(($AQ$1*EXP(17.27*($AM$3/($AM$3+237.3))))))/(17.27-LN(($AQ$1*EXP(17.27*($AM$3/($AM$3+237.3))))))<(($AM$1+$AM$2)/2),1,IF(1/(1+((2258*((0.622/((101325/(1*611*EXP(17.27*((($AM$1+$AM$2)/2)/((($AM$1+$AM$2)/2)+237.3))))))-1)*1000-(0.622/((101325/($AQ$1*611*EXP(17.27*($AM$3/($AM$3+237.3))))))-1)*1000))/(1005*((($AM$1+$AM$2)/2)-$AM$3))))>1,1,1/(1+((2258*((0.622/((101325/(1*611*EXP(17.27*((($AM$1+$AM$2)/2)/((($AM$1+$AM$2)/2)+237.3))))))-1)*1000-(0.622/((101325/($AQ$1*611*EXP(17.27*($AM$3/($AM$3+237.3))))))-1)*1000))/(1005*((($AM$1+$AM$2)/2)-$AM$3)))))) -> 1
G12: =IF($S$7=1,NL!G12,IF(cal!$S$7=2,EN!G12,IF(cal!$S$7=3,DE!G12,IF(cal!$S$7=4,FR!G12,IF(cal!$S$7=5,NR!G12,IF(cal!$S$7=6,SP!G12,IF(cal!$S$7=7,SW!G12,IF(cal!$S$7=8,TS!G12,IF(cal!$S$7=9,ExtraTaal1!G12,IF(cal!$S$7=10,ExtraTaal2!G12,IF(cal!$S$7=11,ExtraTaal3!G12,))))))))))) -> Relatieve vochtigheid | K12: =Luchtverhitter!K11 -> 50% | W12: =Luchtverhitter!K11 -> 50%
D14: =IF($W$4=1,1,IF($W$4=2,3.412141633)) -> 1.0000 | E14: =IF($W$4=1,1,IF($W$4=2,0.004403)) -> 1.0000 | F14: =IF($W$4=1,1,IF($W$4=2,4.0147)) -> 1.0000 | G14: =IF($W$4=1,1,IF($W$4=2,3.412141633)) -> 1.0000 | H14: =IF($W$4=1,1,IF($W$4=2,3.412141633)) -> 1.0000 | I14: =IF($W$4=1,1,IF($W$4=2,0.004403)) -> 1.0000 | J14: =IF($W$4=1,1,IF($W$4=2,4.0147)) -> 1.0000 | K14: =IF($W$4=1,0.000334444444444444,IF($W$4=2,0.000568224721372)) -> 0.0003344444444 | M14: =IF($W$4=1,1,IF($W$4=2,1.8)) -> 1 | N14: =IF($W$4=1,1,IF($W$4=2,0.588575)) -> 1.0000 | O14: =IF($W$4=1,0,IF($W$4=2,32)) -> 0.0000
B15: =IF($S$7=1,NL!B15,IF(cal!$S$7=2,EN!B15,IF(cal!$S$7=3,DE!B15,IF(cal!$S$7=4,FR!B15,IF(cal!$S$7=5,NR!B15,IF(cal!$S$7=6,SP!B15,IF(cal!$S$7=7,SW!B15,IF(cal!$S$7=8,TS!B15,IF(cal!$S$7=9,ExtraTaal1!B15,IF(cal!$S$7=10,ExtraTaal2!B15,IF(cal!$S$7=11,ExtraTaal3!B15,))))))))))) -> Snelheidsniveau | C15: =IF($S$7=1,NL!C15,IF(cal!$S$7=2,EN!C15,IF(cal!$S$7=3,DE!C15,IF(cal!$S$7=4,FR!C15,IF(cal!$S$7=5,NR!C15,IF(cal!$S$7=6,SP!C15,IF(cal!$S$7=7,SW!C15,IF(cal!$S$7=8,TS!C15,IF(cal!$S$7=9,ExtraTaal1!C15,IF(cal!$S$7=10,ExtraTaal2!C15,IF(cal!$S$7=11,ExtraTaal3!C15,))))))))))) -> Stuurspanning [V] | D15: =IF($S$7=1,NL!D15,IF(cal!$S$7=2,EN!D15,IF(cal!$S$7=3,DE!D15,IF(cal!$S$7=4,FR!D15,IF(cal!$S$7=5,NR!D15,IF(cal!$S$7=6,SP!D15,IF(cal!$S$7=7,SW!D15,IF(cal!$S$7=8,TS!D15,IF(cal!$S$7=9,ExtraTaal1!D15,IF(cal!$S$7=10,ExtraTaal2!D15,IF(cal!$S$7=11,ExtraTaal3!D15,))))))))))) -> Warmteafgifte 55/45/20 [kW] | E15: =IF($S$7=1,NL!E15,IF(cal!$S$7=2,EN!E15,IF(cal!$S$7=3,DE!E15,IF(cal!$S$7=4,FR!E15,IF(cal!$S$7=5,NR!E15,IF(cal!$S$7=6,SP!E15,IF(cal!$S$7=7,SW!E15,IF(cal!$S$7=8,TS!E15,IF(cal!$S$7=9,ExtraTaal1!E15,IF(cal!$S$7=10,ExtraTaal2!E15,IF(cal!$S$7=11,ExtraTaal3!E15,))))))))))) -> Waterdebiet, verwarming [l/h] | F15: =IF($S$7=1,NL!F15,IF(cal!$S$7=2,EN!F15,IF(cal!$S$7=3,DE!F15,IF(cal!$S$7=4,FR!F15,IF(cal!$S$7=5,NR!F15,IF(cal!$S$7=6,SP!F15,IF(cal!$S$7=7,SW!F15,IF(cal!$S$7=8,TS!F15,IF(cal!$S$7=9,ExtraTaal1!F15,IF(cal!$S$7=10,ExtraTaal2!F15,IF(cal!$S$7=11,ExtraTaal3!F15,))))))))))) -> Waterzijdig drukverlies [kPa] | G15: =IF($S$7=1,NL!G15,IF(cal!$S$7=2,EN!G15,IF(cal!$S$7=3,DE!G15,IF(cal!$S$7=4,FR!G15,IF(cal!$S$7=5,NR!G15,IF(cal!$S$7=6,SP!G15,IF(cal!$S$7=7,SW!G15,IF(cal!$S$7=8,TS!G15,IF(cal!$S$7=9,ExtraTaal1!G15,IF(cal!$S$7=10,ExtraTaal2!G15,IF(cal!$S$7=11,ExtraTaal3!G15,))))))))))) -> Voelb. Koelcapaciteit 16/18/27 [kW] | I15: =IF($S$7=1,NL!I15,IF(cal!$S$7=2,EN!I15,IF(cal!$S$7=3,DE!I15,IF(cal!$S$7=4,FR!I15,IF(cal!$S$7=5,NR!I15,IF(cal!$S$7=6,SP!I15,IF(cal!$S$7=7,SW!I15,IF(cal!$S$7=8,TS!I15,IF(cal!$S$7=9,ExtraTaal1!I15,IF(cal!$S$7=10,ExtraTaal2!I15,IF(cal!$S$7=11,ExtraTaal3!I15,))))))))))) -> Toerental [u/min] | J15: =IF($S$7=1,NL!J15,IF(cal!$S$7=2,EN!J15,IF(cal!$S$7=3,DE!J15,IF(cal!$S$7=4,FR!J15,IF(cal!$S$7=5,NR!J15,IF(cal!$S$7=6,SP!J15,IF(cal!$S$7=7,SW!J15,IF(cal!$S$7=8,TS!J15,IF(cal!$S$7=9,ExtraTaal1!J15,IF(cal!$S$7=10,ExtraTaal2!J15,IF(cal!$S$7=11,ExtraTaal3!J15,))))))))))) -> Waterzijdig drukverlies [kPa] | K15: =IF($S$7=1,NL!K15,IF(cal!$S$7=2,EN!K15,IF(cal!$S$7=3,DE!K15,IF(cal!$S$7=4,FR!K15,IF(cal!$S$7=5,NR!K15,IF(cal!$S$7=6,SP!K15,IF(cal!$S$7=7,SW!K15,IF(cal!$S$7=8,TS!K15,IF(cal!$S$7=9,ExtraTaal1!K15,IF(cal!$S$7=10,ExtraTaal2!K15,IF(cal!$S$7=11,ExtraTaal3!K15,))))))))))) -> Geluidsdruk ** [dB(A)] | L15: =IF($S$7=1,NL!L15,IF(cal!$S$7=2,EN!L15,IF(cal!$S$7=3,DE!L15,IF(cal!$S$7=4,FR!L15,IF(cal!$S$7=5,NR!L15,IF(cal!$S$7=6,SP!L15,IF(cal!$S$7=7,SW!L15,IF(cal!$S$7=8,TS!L15,IF(cal!$S$7=9,ExtraTaal1!L15,IF(cal!$S$7=10,ExtraTaal2!L15,IF(cal!$S$7=11,ExtraTaal3!L15,))))))))))) -> Geluidsvermogen * [dB(A)] | M15: =IF($S$7=1,NL!M15,IF(cal!$S$7=2,EN!M15,IF(cal!$S$7=3,DE!M15,IF(cal!$S$7=4,FR!M15,IF(cal!$S$7=5,NR!M15,IF(cal!$S$7=6,SP!M15,IF(cal!$S$7=7,SW!M15,IF(cal!$S$7=8,TS!M15,IF(cal!$S$7=9,ExtraTaal1!M15,IF(cal!$S$7=10,ExtraTaal2!M15,IF(cal!$S$7=11,ExtraTaal3!M15,))))))))))) -> Opgenomen elektr. vermogen [W] | N15: =IF($S$7=1,NL!N15,IF(cal!$S$7=2,EN!N15,IF(cal!$S$7=3,DE!N15,IF(cal!$S$7=4,FR!N15,IF(cal!$S$7=5,NR!N15,IF(cal!$S$7=6,SP!N15,IF(cal!$S$7=7,SW!N15,IF(cal!$S$7=8,TS!N15,IF(cal!$S$7=9,ExtraTaal1!N15,IF(cal!$S$7=10,ExtraTaal2!N15,IF(cal!$S$7=11,ExtraTaal3!N15,))))))))))) -> Luchtdebiet [m³/h] | O15: =IF($S$7=1,NL!O15,IF(cal!$S$7=2,EN!O15,IF(cal!$S$7=3,DE!O15,IF(cal!$S$7=4,FR!O15,IF(cal!$S$7=5,NR!O15,IF(cal!$S$7=6,SP!O15,IF(cal!$S$7=7,SW!O15,IF(cal!$S$7=8,TS!O15,IF(cal!$S$7=9,ExtraTaal1!O15,IF(cal!$S$7=10,ExtraTaal2!O15,IF(cal!$S$7=11,ExtraTaal3!O15,))))))))))) -> Uitblaastemp. verwarming [°C] | P15: =IF($S$7=1,NL!P15,IF(cal!$S$7=2,EN!P15,IF(cal!$S$7=3,DE!P15,IF(cal!$S$7=4,FR!P15,IF(cal!$S$7=5,NR!P15,IF(cal!$S$7=6,SP!P15,IF(cal!$S$7=7,SW!P15,IF(cal!$S$7=8,TS!P15,IF(cal!$S$7=9,ExtraTaal1!P15,IF(cal!$S$7=10,ExtraTaal2!P15,IF(cal!$S$7=11,ExtraTaal3!P15,))))))))))) -> Uitblaastemp. koeling [°C] | W15: Q_verw | X15: dP_verw | Y15: Q_voelb_c | Z15: oppWW | AA15: Geluid_P | AB15: P_elek | AC15: V_air | AE15: Q_verw | AF15: toerental n[u/min] | AG15: Q_voelb_c | AH15: dP_cool | AI15: Geluid_P | AJ15: P_elek | AK15: V_air | AL15: Q_verw | AM15: toerental n[u/min] | AN15: Q_voelb_c | AO15: dP_cool | AP15: Geluid_P | AQ15: P_elek | AR15: V_air | AS15: Q_verw | AT15: toerental n[u/min] | AU15: Q_voelb_c | AV15: dP_cool | AW15: Geluid_P | AX15: P_elek | AY15: V_air | AZ15: Q_verw | BA15: toerental n[u/min] | BB15: Q_voelb_c | BC15: dP_cool | BD15: Geluid_P | BE15: P_elek | BF15: V_air | BG15: Q_verw | BH15: toerental n[u/min] | BI15: Q_voelb_c | BJ15: dP_cool | BK15: Geluid_P | BL15: P_elek | BM15: V_air
B16: =IF($S$7=1,NL!B16,IF(cal!$S$7=2,EN!B16,IF(cal!$S$7=3,DE!B16,IF(cal!$S$7=4,FR!B16,IF(cal!$S$7=5,NR!B16,IF(cal!$S$7=6,SP!B16,IF(cal!$S$7=7,SW!B16,IF(cal!$S$7=8,TS!B16,IF(cal!$S$7=9,ExtraTaal1!B16,IF(cal!$S$7=10,ExtraTaal2!B16,IF(cal!$S$7=11,ExtraTaal3!B16,))))))))))) -> Luchtverhitter hoogte 41 cm breedte 41 cm lengte 43 cm (Type 021) | C16: =IF($S$7=1,NL!C16,IF(cal!$S$7=2,EN!C16,IF(cal!$S$7=3,DE!C16,IF(cal!$S$7=4,FR!C16,IF(cal!$S$7=5,NR!C16,IF(cal!$S$7=6,SP!C16,)))))) -> 0 | D16: =IF($S$7=1,NL!D16,IF(cal!$S$7=2,EN!D16,IF(cal!$S$7=3,DE!D16,IF(cal!$S$7=4,FR!D16,IF(cal!$S$7=5,NR!D16,IF(cal!$S$7=6,SP!D16,)))))) -> 0 | E16: =IF($S$7=1,NL!E16,IF(cal!$S$7=2,EN!E16,IF(cal!$S$7=3,DE!E16,IF(cal!$S$7=4,FR!E16,IF(cal!$S$7=5,NR!E16,IF(cal!$S$7=6,SP!E16,)))))) -> 0 | F16: =IF($S$7=1,NL!F16,IF(cal!$S$7=2,EN!F16,IF(cal!$S$7=3,DE!F16,IF(cal!$S$7=4,FR!F16,IF(cal!$S$7=5,NR!F16,IF(cal!$S$7=6,SP!F16,)))))) -> 0 | G16: =IF($S$7=1,NL!G16,IF(cal!$S$7=2,EN!G16,IF(cal!$S$7=3,DE!G16,IF(cal!$S$7=4,FR!G16,IF(cal!$S$7=5,NR!G16,IF(cal!$S$7=6,SP!G16,)))))) -> 0 | H16: =IF($S$7=1,NL!H16,IF(cal!$S$7=2,EN!H16,IF(cal!$S$7=3,DE!H16,IF(cal!$S$7=4,FR!H16,IF(cal!$S$7=5,NR!H16,IF(cal!$S$7=6,SP!H16,)))))) -> 0 | I16: =IF($S$7=1,NL!I16,IF(cal!$S$7=2,EN!I16,IF(cal!$S$7=3,DE!I16,IF(cal!$S$7=4,FR!I16,IF(cal!$S$7=5,NR!I16,IF(cal!$S$7=6,SP!I16,)))))) -> 0 | J16: =IF($S$7=1,NL!J16,IF(cal!$S$7=2,EN!J16,IF(cal!$S$7=3,DE!J16,IF(cal!$S$7=4,FR!J16,IF(cal!$S$7=5,NR!J16,IF(cal!$S$7=6,SP!J16,)))))) -> 0 | K16: =IF($S$7=1,NL!K16,IF(cal!$S$7=2,EN!K16,IF(cal!$S$7=3,DE!K16,IF(cal!$S$7=4,FR!K16,IF(cal!$S$7=5,NR!K16,IF(cal!$S$7=6,SP!K16,)))))) -> 0 | L16: =IF($S$7=1,NL!L16,IF(cal!$S$7=2,EN!L16,IF(cal!$S$7=3,DE!L16,IF(cal!$S$7=4,FR!L16,IF(cal!$S$7=5,NR!L16,IF(cal!$S$7=6,SP!L16,)))))) -> 0 | M16: =IF($S$7=1,NL!M16,IF(cal!$S$7=2,EN!M16,IF(cal!$S$7=3,DE!M16,IF(cal!$S$7=4,FR!M16,IF(cal!$S$7=5,NR!M16,IF(cal!$S$7=6,SP!M16,)))))) -> 0 | N16: =IF($S$7=1,NL!N16,IF(cal!$S$7=2,EN!N16,IF(cal!$S$7=3,DE!N16,IF(cal!$S$7=4,FR!N16,IF(cal!$S$7=5,NR!N16,IF(cal!$S$7=6,SP!N16,)))))) -> 0 | O16: =IF($S$7=1,NL!O16,IF(cal!$S$7=2,EN!O16,IF(cal!$S$7=3,DE!O16,IF(cal!$S$7=4,FR!O16,IF(cal!$S$7=5,NR!O16,IF(cal!$S$7=6,SP!O16,)))))) -> 0 | P16: =IF($S$7=1,NL!P16,IF(cal!$S$7=2,EN!P16,IF(cal!$S$7=3,DE!P16,IF(cal!$S$7=4,FR!P16,IF(cal!$S$7=5,NR!P16,IF(cal!$S$7=6,SP!P16,)))))) -> 0 | S16: n-value | W16: =IF(Luchtverhitter!$K$4=cal!$X2,0,IF(Luchtverhitter!$K$4=cal!$X3,1,IF(Luchtverhitter!$K$4=cal!$X4,2,IF(Luchtverhitter!$K$4=cal!$X5,3,IF(Luchtverhitter!$K$4=cal!$X6,4,IF(Luchtverhitter!$K$4=cal!$X7,5,IF(Luchtverhitter!$K$4=cal!$X8,7,IF(Luchtverhitter!$K$4=cal!$X9,8,)))))))) -> 0 | AE16: 0 | AL16: 1 | AS16: 2 | AZ16: 3 | BG16: 4 | BU16: 321 | CB16: 331 | CI16: 332 | CP16: 333
B17: 20% | C17: 2 | D17: =(W17/1000)*($AC$11/$AB$11)*$D$14*$AA$11 -> 2.7 | G17: =IF($AI$11=1,W17/1000*($AD$11/$AB$11)*$G$14*$AA$11,"") -> 0.9 | I17: =X17 -> 731 | K17: =L17-16 -> 34.0 | L17: =AA17 -> 50.0 | M17: 10.0 | N17: =AC17*$N$14 -> 594 | O17: =(Tl_heat+((($D17*1000)/$G$14)/(1006*$N17*$K$14)))*$M$14+$O$14 -> 33.4 | P17: =IF($AI$11=1,(Tl_cool-(($G17*1000/$G$14)/(1006*$N17*$K$14)))*$M$14+$O$14,"") -> 22.6 | S17: 1.000 | W17: =IF($W$16=0,AE17,IF($W$16=1,AL17,IF($W$16=2,AS17,IF($W$16=3,AZ17,IF($W$16=4,BG17,IF($W$16=5,BN17,IF($W$16=7,BU17,IF($W$16=8,CB17)))))))) -> 5800.00 | X17: 731 | Y17: 882.3931624 | Z17: 0 | AA17: 50 | AB17: 10.000 | AC17: 594 | AD17: c | AE17: 5800 | AF17: 731 | AG17: =AE17*($AD$11/$AB$11) -> 882.393 | AI17: 50.0 | AJ17: 10.000 | AK17: 594 | AL17: 10348 | AM17: 458 | AN17: =AL17*($AD$11/$AB$11) -> 1574.3 | AP17: 41.2 | AQ17: 8.0 | AR17: 699 | AS17: 23342 | AT17: 515 | AU17: =AS17*($AD$11/$AB$11) -> 3551.2 | AW17: 57.8 | AX17: 27.0 | AY17: 1773 | AZ17: 29259 | BA17: 274 | BB17: =AZ17*($AD$11/$AB$11) -> 4451.4 | BD17: 43.3 | BE17: 20.0 | BF17: 1403 | BG17: 38569 | BH17: 291 | BI17: =BG17*($AD$11/$AB$11) -> 5867.8 | BK17: 46.2 | BL17: 30.0 | BM17: 2207
B18: 40% | C18: 4 | D18: =(W18/1000)*($AC$11/$AB$11)*$D$14*$AA$11 -> 3.3 | G18: =IF($AI$11=1,W18/1000*($AD$11/$AB$11)*$G$14*$AA$11,"") -> 1.1 | I18: =X18 -> 984 | K18: =L18-16 -> 42.4 | L18: 58.4 | M18: 20.0 | N18: =AC18*$N$14 -> 847 | O18: =(Tl_heat+((($D18*1000)/$G$14)/(1006*$N18*$K$14)))*$M$14+$O$14 -> 31.5 | P18: 23.2 | S18: 1.000 | W18: =IF($W$16=0,AE18,IF($W$16=1,AL18,IF($W$16=2,AS18,IF($W$16=3,AZ18,IF($W$16=4,BG18,IF($W$16=5,BN18,IF($W$16=7,BU18,IF($W$16=8,CB18)))))))) -> 7100.00 | X18: =IF($W$16=0,AF18,IF($W$16=1,AM18,IF($W$16=2,AT18,IF($W$16=3,BA18,IF($W$16=4,BH18,IF($W$16=5,BO18,IF($W$16=7,BV18,IF($W$16=8,CC18)))))))) -> 984 | Y18: =IF($W$16=0,AG18,IF($W$16=1,AN18,IF($W$16=2,AU18,IF($W$16=3,BB18,IF($W$16=4,BI18,IF($W$16=5,BP18,IF($W$16=7,BW18,IF($W$16=8,CD18)))))))) -> 1080.17094 | Z18: =IF($W$16=0,AH18,IF($W$16=1,AO18,IF($W$16=2,AV18,IF($W$16=3,BC18,IF($W$16=4,BJ18,IF($W$16=5,BQ18,IF($W$16=7,BX18,IF($W$16=8,CE18)))))))) -> 0 | AA18: =IF($W$16=0,AI18,IF($W$16=1,AP18,IF($W$16=2,AW18,IF($W$16=3,BD18,IF($W$16=4,BK18,IF($W$16=5,BR18,IF($W$16=7,BY18,IF($W$16=8,CF18)))))))) -> 58.4 | AB18: =IF($W$16=0,AJ18,IF($W$16=1,AQ18,IF($W$16=2,AX18,IF($W$16=3,BE18,IF($W$16=4,BL18,IF($W$16=5,BS18,IF($W$16=7,BZ18,IF($W$16=8,CG18)))))))) -> 20.000 | AC18: =IF($W$16=0,AK18,IF($W$16=1,AR18,IF($W$16=2,AY18,IF($W$16=3,BF18,IF($W$16=4,BM18,IF($W$16=5,BT18,IF($W$16=7,CA18,IF($W$16=8,CH18)))))))) -> 847 | AD18: d | AE18: 7100 | AF18: 984 | AG18: =AE18*($AD$11/$AB$11) -> 1080.171 | AI18: 58.4 | AJ18: 20.000 | AK18: 847 | AL18: 13849 | AM18: 614 | AN18: =AL18*($AD$11/$AB$11) -> 2106.9 | AP18: 49.3 | AQ18: 14.0 | AR18: 997 | AS18: 28268 | AT18: 703 | AU18: =AS18*($AD$11/$AB$11) -> 4300.6 | AW18: 59.3 | AX18: 54.0 | AY18: 2517 | AZ18: 37838 | BA18: 378 | BB18: =AZ18*($AD$11/$AB$11) -> 5756.6 | BD18: 51.6 | BE18: 34.0 | BF18: 2036 | BG18: 45623 | BH18: 399 | BI18: =BG18*($AD$11/$AB$11) -> 6940.9 | BK18: 53.8 | BL18: 54.0 | BM18: 3107
B19: 60% | C19: 6 | D19: =(W19/1000)*($AC$11/$AB$11)*$D$14*$AA$11 -> 3.8 | G19: 1.3 | I19: =X19 -> 1286 | K19: =L19-16 -> 50.1 | L19: 66.1 | M19: 43.0 | N19: =AC19*$N$14 -> 1144 | O19: =(Tl_heat+((($D19*1000)/$G$14)/(1006*$N19*$K$14)))*$M$14+$O$14 -> 30.0 | P19: 23.7 | S19: 1.000 | W19: 8300.00 | X19: 1286 | Y19: 1262.735043 | Z19: =IF($W$16=0,AH19,IF($W$16=1,AO19,IF($W$16=2,AV19,IF($W$16=3,BC19,IF($W$16=4,BJ19,IF($W$16=5,BQ19,IF($W$16=7,BX19,IF($W$16=8,CE19)))))))) -> 0 | AA19: 66.1 | AB19: 43.000 | AC19: 1144 | AD19: e | AE19: 8300 | AF19: 1286 | AG19: =AE19*($AD$11/$AB$11) -> 1262.735 | AI19: 66.1 | AJ19: 43.000 | AK19: 1144 | AL19: 16858 | AM19: 857 | AN19: =AL19*($AD$11/$AB$11) -> 2564.7 | AP19: 57.9 | AQ19: 35.0 | AR19: 1438 | AS19: 34279 | AT19: 936 | AU19: =AS19*($AD$11/$AB$11) -> 5215.1 | AW19: 67.6 | AX19: 115.0 | AY19: 3467 | AZ19: 46835 | BA19: 515 | BB19: =AZ19*($AD$11/$AB$11) -> 7125.3 | BD19: 59.1 | BE19: 69.0 | BF19: 2998 | BG19: 57515 | BH19: 539 | BI19: =BG19*($AD$11/$AB$11) -> 8750.1 | BK19: 62.2 | BL19: 113.0 | BM19: 4344
B20: 80% | C20: 8 | D20: =(W20/1000)*($AC$11/$AB$11)*$D$14*$AA$11 -> 4.2 | G20: 1.4 | I20: =X20 -> 1469 | K20: =L20-16 -> 53.9 | L20: 69.9 | M20: 63.0 | N20: =AC20*$N$14 -> 1325 | O20: =(Tl_heat+((($D20*1000)/$G$14)/(1006*$N20*$K$14)))*$M$14+$O$14 -> 29.5 | P20: 23.9 | S20: 1.000 | W20: 9200.00 | X20: 1469 | Y20: 1399.65812 | Z20: =IF($W$16=0,AH20,IF($W$16=1,AO20,IF($W$16=2,AV20,IF($W$16=3,BC20,IF($W$16=4,BJ20,IF($W$16=5,BQ20,IF($W$16=7,BX20,IF($W$16=8,CE20)))))))) -> 0 | AA20: 69.9 | AB20: 63.000 | AC20: 1325 | AD20: f | AE20: 9200 | AF20: 1469 | AG20: =AE20*($AD$11/$AB$11) -> 1399.658 | AI20: 69.9 | AJ20: 63.000 | AK20: 1325 | AL20: 18983 | AM20: 1143 | AN20: =AL20*($AD$11/$AB$11) -> 2888.0 | AP20: 65.5 | AQ20: 80.0 | AR20: 1984 | AS20: 37231 | AT20: 1117 | AU20: =AS20*($AD$11/$AB$11) -> 5664.2 | AW20: 71.5 | AX20: 187.0 | AY20: 4153 | AZ20: 50973 | BA20: 722 | BB20: =AZ20*($AD$11/$AB$11) -> 7754.9 | BD20: 67.7 | BE20: 158.0 | BF20: 4254 | BG20: 69630 | BH20: 731 | BI20: =BG20*($AD$11/$AB$11) -> 10593.3 | BK20: 70.6 | BL20: 249.0 | BM20: 6004
B21: 100% | C21: 10 | D21: =(W21/1000)*($AC$11/$AB$11)*$D$14*$AA$11 -> 4.4 | G21: 1.4 | I21: =X21 -> 1559 | K21: =L21-16 -> 55.4 | L21: 71.4 | M21: 76.0 | N21: =AC21*$N$14 -> 1422 | O21: =(Tl_heat+((($D21*1000)/$G$14)/(1006*$N21*$K$14)))*$M$14+$O$14 -> 29.2 | P21: 24.0 | S21: 1.000 | W21: 9500.00 | X21: 1559 | Y21: 1445.299145 | Z21: =IF($W$16=0,AH21,IF($W$16=1,AO21,IF($W$16=2,AV21,IF($W$16=3,BC21,IF($W$16=4,BJ21,IF($W$16=5,BQ21,IF($W$16=7,BX21,IF($W$16=8,CE21)))))))) -> 0 | AA21: 71.4 | AB21: 76.000 | AC21: 1422 | AD21: g | AE21: 9500 | AF21: 1559 | AG21: =AE21*($AD$11/$AB$11) -> 1445.299 | AI21: 71.4 | AJ21: 76.000 | AK21: 1422 | AL21: 20467 | AM21: 1413 | AN21: =AL21*($AD$11/$AB$11) -> 3113.8 | AP21: 71.2 | AQ21: 115.0 | AR21: 2422 | AS21: 39475 | AT21: 1232 | AU21: =AS21*($AD$11/$AB$11) -> 6005.6 | AW21: 75.2 | AX21: 248.0 | AY21: 4643 | AZ21: 52259 | BA21: 826 | BB21: =AZ21*($AD$11/$AB$11) -> 7950.5 | BD21: 71.1 | BE21: 232.0 | BF21: 4915 | BG21: 84764 | BH21: 972 | BI21: =BG21*($AD$11/$AB$11) -> 12895.7 | BK21: 78.3 | BL21: 569.0 | BM21: 8147
B22: =IF($S$7=1,NL!B22,IF(cal!$S$7=2,EN!B22,IF(cal!$S$7=3,DE!B22,IF(cal!$S$7=4,FR!B22,IF(cal!$S$7=5,NR!B22,IF(cal!$S$7=6,SP!B22,IF(cal!$S$7=7,SW!B22,IF(cal!$S$7=8,TS!B22,IF(cal!$S$7=9,ExtraTaal1!B22,IF(cal!$S$7=10,ExtraTaal2!B22,IF(cal!$S$7=11,ExtraTaal3!B22,))))))))))) -> Luchtverhitter hoogte 41 cm breedte 41 cm lengte 43 cm (Type 031) | C22: =IF($AI$11=1,(Tl_cool-(($G22/$G$14)/(1006*$N22*$K$14)))*$M$14+$O$14,"") ->  | S22: n-value | W22: H | X22: 41.0 | Y22: B | Z22: =X22 -> 41.0 | AA22: L | AB22: 43 | AC22: 21 | AE22: H | AF22: 41 | AG22: B | AH22: 41 | AI22: L | AJ22: 43 | AK22: 21 | AM22: 53 | AO22: 53 | AQ22: 48 | AR22: 21 | AT22: 65 | AV22: 65 | AX22: 49.8 | AY22: 21 | BA22: 77 | BC22: 77 | BE22: 57.2 | BF22: 21 | BH22: 89 | BJ22: 89 | BL22: 59.2 | BM22: 21
B23: 20% | C23: 2 | D23: =(W23/1000)*($AC$11/$AB$11)*$D$14*$AA$11 -> 3.2 | G23: 1.0 | I23: =X23 -> 731 | K23: =L23-16 -> 33.0 | L23: =AA23 -> 49.0 | M23: 11.0 | N23: =AC23*$N$14 -> 561 | O23: =(Tl_heat+((($D23*1000)/$G$14)/(1006*$N23*$K$14)))*$M$14+$O$14 -> 36.9 | P23: 21.4 | S23: 1.000 | W23: 6900 | X23: 731 | Y23: 1049.7 | AA23: 49.0 | AB23: 11.000 | AC23: 561 | AD23: c | AE23: 6900 | AF23: 731 | AG23: =AE23*($AD$11/$AB$11) -> 1049.7 | AI23: 49.0 | AJ23: 11.000 | AK23: 561 | AL23: 11932 | AM23: 458 | AN23: =AL23*($AD$11/$AB$11) -> 1815.3 | AP23: 40.2 | AQ23: 9.0 | AR23: 660 | AS23: 27597 | AT23: 515 | AU23: =AS23*($AD$11/$AB$11) -> 4198.5 | AW23: 56.8 | AX23: 28.0 | AY23: 1673 | AZ23: 32260 | BA23: 274 | BB23: =AZ23*($AD$11/$AB$11) -> 4907.9 | BD23: 42.3 | BE23: 21.0 | BF23: 1324 | BG23: 41927 | BH23: 291 | BI23: =BG23*($AD$11/$AB$11) -> 6378.6 | BK23: 45.2 | BL23: 31.0 | BM23: 2083
B24: 40% | C24: 4 | D24: =(W24/1000)*($AC$11/$AB$11)*$D$14*$AA$11 -> 3.9 | G24: 1.3 | I24: =X24 -> 984 | K24: =L24-16 -> 41.4 | L24: 57.4 | M24: 21.0 | N24: =AC24*$N$14 -> 799 | O24: =(Tl_heat+((($D24*1000)/$G$14)/(1006*$N24*$K$14)))*$M$14+$O$14 -> 34.6 | P24: 22.2 | S24: 1.000 | W24: 8500 | X24: 984 | Y24: 1293.2 | AA24: 57.4 | AB24: 21.000 | AC24: 799 | AD24: d | AE24: 8500 | AF24: 984 | AG24: =AE24*($AD$11/$AB$11) -> 1293.2 | AI24: 57.4 | AJ24: 21.000 | AK24: 799 | AL24: 15910 | AM24: 614 | AN24: =AL24*($AD$11/$AB$11) -> 2420.5 | AP24: 48.2 | AQ24: 15.0 | AR24: 941 | AS24: 33730 | AT24: 703 | AU24: =AS24*($AD$11/$AB$11) -> 5131.6 | AW24: 58.2 | AX24: 55.0 | AY24: 2375 | AZ24: 36298 | BA24: 378 | BB24: =AZ24*($AD$11/$AB$11) -> 5522.3 | BD24: 50.3 | BE24: 35.0 | BF24: 1922 | BG24: 54031 | BH24: 399 | BI24: =BG24*($AD$11/$AB$11) -> 8220.1 | BK24: 52.7 | BL24: 55.0 | BM24: 2932
B25: 60% | C25: 6 | D25: =(W25/1000)*($AC$11/$AB$11)*$D$14*$AA$11 -> 4.8 | G25: 1.6 | I25: =X25 -> 1286 | K25: =L25-16 -> 49.0 | L25: 65.0 | M25: 45.0 | N25: =AC25*$N$14 -> 1080 | O25: =(Tl_heat+((($D25*1000)/$G$14)/(1006*$N25*$K$14)))*$M$14+$O$14 -> 33.3 | P25: 22.6 | S25: 1.000 | W25: 10500 | X25: 1286 | Y25: 1597.4 | AA25: 65.0 | AB25: 45.000 | AC25: 1080 | AD25: e | AE25: 10500 | AF25: 1286 | AG25: =AE25*($AD$11/$AB$11) -> 1597.4 | AI25: 65.0 | AJ25: 45.000 | AK25: 1080 | AL25: 21754 | AM25: 857 | AN25: =AL25*($AD$11/$AB$11) -> 3309.6 | AP25: 56.3 | AQ25: 37.0 | AR25: 1357 | AS25: 40425 | AT25: 936 | AU25: =AS25*($AD$11/$AB$11) -> 6150.1 | AW25: 69.1 | AX25: 117.0 | AY25: 3272 | AZ25: 46291 | BA25: 515 | BB25: =AZ25*($AD$11/$AB$11) -> 7042.6 | BD25: 57.9 | BE25: 71.0 | BF25: 2829 | BG25: 69737 | BH25: 539 | BI25: =BG25*($AD$11/$AB$11) -> 10609.6 | BK25: 60.9 | BL25: 115.0 | BM25: 4100
B26: 80% | C26: 8 | D26: =(W26/1000)*($AC$11/$AB$11)*$D$14*$AA$11 -> 5.4 | G26: 1.8 | I26: =X26 -> 1469 | K26: =L26-16 -> 52.0 | L26: 68.0 | M26: 65.0 | N26: =AC26*$N$14 -> 1251 | O26: =(Tl_heat+((($D26*1000)/$G$14)/(1006*$N26*$K$14)))*$M$14+$O$14 -> 32.8 | P26: 22.8 | S26: 1.000 | W26: 11700 | X26: 1469 | Y26: 1780.0 | AA26: 68.0 | AB26: 65.000 | AC26: 1251 | AD26: f | AE26: 11700 | AF26: 1469 | AG26: =AE26*($AD$11/$AB$11) -> 1780.0 | AI26: 68.0 | AJ26: 65.000 | AK26: 1251 | AL26: 25151 | AM26: 1143 | AN26: =AL26*($AD$11/$AB$11) -> 3826.4 | AP26: 63.1 | AQ26: 82.0 | AR26: 1872 | AS26: 44964 | AT26: 1117 | AU26: =AS26*($AD$11/$AB$11) -> 6840.7 | AW26: 69.6 | AX26: 189.0 | AY26: 3920 | AZ26: 58226 | BA26: 722 | BB26: =AZ26*($AD$11/$AB$11) -> 8858.3 | BD26: 65.9 | BE26: 160.0 | BF26: 4015 | BG26: 85020 | BH26: 731 | BI26: =BG26*($AD$11/$AB$11) -> 12934.7 | BK26: 68.9 | BL26: 251.0 | BM26: 5666
B27: 100% | C27: 10 | D27: =(W27/1000)*($AC$11/$AB$11)*$D$14*$AA$11 -> 5.8 | G27: 1.9 | I27: =X27 -> 1559 | K27: =L27-16 -> 53.1 | L27: 69.1 | M27: 79.0 | N27: =AC27*$N$14 -> 1342 | O27: =(Tl_heat+((($D27*1000)/$G$14)/(1006*$N27*$K$14)))*$M$14+$O$14 -> 32.8 | P27: 22.8 | S27: 1.000 | W27: 12500 | X27: 1559 | Y27: 1901.7 | AA27: 69.1 | AB27: 79.000 | AC27: 1342 | AD27: g | AE27: 12500 | AF27: 1559 | AG27: =AE27*($AD$11/$AB$11) -> 1901.7 | AI27: 69.1 | AJ27: 79.000 | AK27: 1342 | AL27: 26077 | AM27: 1413 | AN27: =AL27*($AD$11/$AB$11) -> 3967.3 | AP27: 71.2 | AQ27: 118.0 | AR27: 2286 | AS27: 47700 | AT27: 1232 | AU27: =AS27*($AD$11/$AB$11) -> 7256.9 | AW27: 75.8 | AX27: 251.0 | AY27: 4382 | AZ27: 67259 | BA27: 826 | BB27: =AZ27*($AD$11/$AB$11) -> 10232.6 | BD27: 72.3 | BE27: 325.0 | BF27: 4639 | BG27: 102183 | BH27: 972 | BI27: =BG27*($AD$11/$AB$11) -> 15545.8 | BK27: 76.4 | BL27: 572.0 | BM27: 7689
S28: n-value | W28: H | X28: 41 | Y28: B | Z28: =X28 -> 41 | AA28: L | AB28: =IF($W$16=0,AJ28,IF($W$16=1,AQ28,IF($W$16=2,AX28,IF($W$16=3,BE28,IF($W$16=4,BL28,IF($W$16=5,BS28,IF($W$16=7,BZ28,IF($W$16=8,CG28)))))))) -> 43 | AC28: =IF($W$16=0,AK28,IF($W$16=1,AR28,IF($W$16=2,AY28,IF($W$16=3,BF28,IF($W$16=4,BM28,IF($W$16=5,BT28,IF($W$16=7,CA28,IF($W$16=8,CH28)))))))) -> 31 | AE28: H | AF28: 41 | AG28: B | AH28: 43 | AI28: L | AJ28: 43 | AK28: 31 | AM28: 53 | AO28: 53 | AQ28: 48 | AR28: 31 | AT28: 65 | AV28: 65 | AX28: 49.8 | AY28: 31 | BA28: 77 | BC28: 77 | BE28: 57.2 | BF28: 31 | BH28: 89 | BJ28: 89 | BL28: 59.2 | BM28: 31
S29: 1.000 | AR29: 1773
S30: 1.000 | AR30: 2517
S31: 1.000 | AR31: 3467
S32: 1.000 | AR32: 4153
S33: 1.000 | AR33: 4643
S34: n-value
S35: 1.000
S36: 1.000
S37: 1.000
S38: 1.000
S39: 1.000
S40: n-value
S41: 1.000
S42: 1.000
S43: 1.000
S44: 1.000
S45: 1.000
B46: =IF($S$7=1,NL!B40,IF(cal!$S$7=2,EN!B40,IF(cal!$S$7=3,DE!B40,IF(cal!$S$7=4,FR!B40,IF(cal!$S$7=5,NR!B40,IF(cal!$S$7=6,SP!B40,IF(cal!$S$7=7,SW!B40,IF(cal!$S$7=8,TS!B40,IF(cal!$S$7=9,ExtraTaal1!B40,IF(cal!$S$7=10,ExtraTaal2!B40,IF(cal!$S$7=11,ExtraTaal3!B40,))))))))))) -> *Geluidsvermogen gemeten volgens ISO 3741:2010 | P46: =Luchtverhitter!N27 -> v2025-07-25
B47: =IF($S$7=1,NL!B41,IF(cal!$S$7=2,EN!B41,IF(cal!$S$7=3,DE!B41,IF(cal!$S$7=4,FR!B41,IF(cal!$S$7=5,NR!B41,IF(cal!$S$7=6,SP!B41,IF(cal!$S$7=7,SW!B41,IF(cal!$S$7=8,TS!B41,IF(cal!$S$7=9,ExtraTaal1!B41,IF(cal!$S$7=10,ExtraTaal2!B41,IF(cal!$S$7=11,ExtraTaal3!B41,))))))))))) -> **Geluidsdruk bij een aangenomen ruimtedemping van 16 dB(A)

Sheet NL (hidden)
B3: Invulformulier
H4: Hydraulisch mengsel: | I4: 0 | J4: 0 | K4: 0
B5: Randvoorwaarden | H5: Toestel - Ventilator - Uitvoering: | I5: 0 | J5: 0 | K5: 0
B7: Temperaturen | Q7: Kopieer alle data
B8: Verwarmen: | G8: Koelen: | Q8: SI-eenheden
B9: ="Water aanvoer" -> Water aanvoer | E9: =cal!E9 -> 55 | G9: =B9 -> Water aanvoer | K9: =cal!K9 -> 16 | M9: Eenheidsstelsel | Q9: Imperiale-eenheden
B10: ="Water retour" -> Water retour | E10: =cal!E10 -> 45 | G10: =B10 -> Water retour | K10: =cal!K10 -> 18
B11: ="Ruimte" -> Ruimte | E11: =cal!E11 -> 20 | G11: =B11 -> Ruimte | K11: =cal!K11 -> 27
G12: Relatieve vochtigheid | K12: =cal!K12 -> 50%
B15: Snelheidsniveau | C15: Stuurspanning [V] | D15: =CONCATENATE("Warmteafgifte ",ROUND(E9,0),"/",ROUND(E10,0),"/",ROUND(E11,0)," ["&IF(UnitsNo=1,"kW",IF(UnitsNo=2,"MBH"))&"]") -> Warmteafgifte 55/45/20 [kW] | E15: ="Waterdebiet, verwarming ["&IF(UnitsNo=1,"l/h",IF(UnitsNo=2,"GPM"))&"]" -> Waterdebiet, verwarming [l/h] | F15: ="Waterzijdig drukverlies ["&IF(UnitsNo=1,"kPa",IF(UnitsNo=2,"inH2O"))&"]" -> Waterzijdig drukverlies [kPa] | G15: =CONCATENATE("Voelb. Koelcapaciteit ",ROUND(K9,0),"/",,ROUND(K10,0),"/",,ROUND(K11,0)," ["&IF(UnitsNo=1,"kW",IF(UnitsNo=2,"Btu/h"))&"]") -> Voelb. Koelcapaciteit 16/18/27 [kW] | H15: =CONCATENATE("Tot. koelcapaciteit ",,ROUND(K9,0),"/",,ROUND(K10,0),"/",,ROUND(K11,0)," ["&IF(UnitsNo=1,"kW",IF(UnitsNo=2,"Btu/h"))&"]") -> Tot. koelcapaciteit 16/18/27 [kW] | I15: ="Toerental ["&IF(UnitsNo=1,"u/min",IF(UnitsNo=2,"RPM"))&"]" -> Toerental [u/min] | J15: ="Waterzijdig drukverlies ["&IF(UnitsNo=1,"kPa",IF(UnitsNo=2,"inH2O"))&"]" -> Waterzijdig drukverlies [kPa] | K15: Geluidsdruk ** [dB(A)] | L15: Geluidsvermogen * [dB(A)] | M15: Opgenomen elektr. vermogen [W] | N15: ="Luchtdebiet ["&IF(UnitsNo=1,"m³/h",IF(UnitsNo=2,"CFM"))&"]" -> Luchtdebiet [m³/h] | O15: ="Uitblaastemp. verwarming ["&IF(UnitsNo=1,"°C",IF(UnitsNo=2,"°F"))&"]" -> Uitblaastemp. verwarming [°C] | P15: ="Uitblaastemp. koeling ["&IF(UnitsNo=1,"°C",IF(UnitsNo=2,"°F"))&"]" -> Uitblaastemp. koeling [°C]
B16: =cal!$X$1&" "&$T$16&" "&ROUND(cal!X22,1)&IF(UnitsNo=1," cm",IF(UnitsNo=2," in"))& " "&$T$17&" "&ROUND(cal!Z22,1)&IF(UnitsNo=1," cm",IF(UnitsNo=2," in"))&" "&$T$18&" "&ROUND(cal!AB22,1)&IF(UnitsNo=1," cm",IF(UnitsNo=2," in"))&" (Type "&cal!W16&""&cal!AC22&")" -> Luchtverhitter hoogte 41 cm breedte 41 cm lengte 43 cm (Type 021) | R16: Temp. | T16: hoogte
R17: verw.! | T17: breedte
R18: koelen! | T18: lengte
B22: =cal!$X$1&" "&$T$16&" "&ROUND(cal!X28,1)&IF(UnitsNo=1," cm",IF(UnitsNo=2," in"))& " "&$T$17&" "&ROUND(cal!Z28,1)&IF(UnitsNo=1," cm",IF(UnitsNo=2," in"))&" "&$T$18&" "&ROUND(cal!AB28,1)&IF(UnitsNo=1," cm",IF(UnitsNo=2," in"))&" (Type "&cal!W16&""&cal!AC28&")" -> Luchtverhitter hoogte 41 cm breedte 41 cm lengte 43 cm (Type 031)
B28: =cal!$X$1&" "&$T$16&" "&ROUND(cal!X34,1)&IF(UnitsNo=1," cm",IF(UnitsNo=2," in"))& " "&$T$17&" "&ROUND(cal!Z34,1)&IF(UnitsNo=1," cm",IF(UnitsNo=2," in"))&" "&$T$18&" "&ROUND(cal!AB34,1)&IF(UnitsNo=1," cm",IF(UnitsNo=2," in"))&" (Type 3)" -> Luchtverhitter hoogte 0 cm breedte 0 cm lengte 0 cm (Type 3)
B34: =cal!$X$1&" "&$T$16&" "&ROUND(cal!X40,1)&IF(UnitsNo=1," cm",IF(UnitsNo=2," in"))& " "&$T$17&" "&ROUND(cal!Z40,1)&IF(UnitsNo=1," cm",IF(UnitsNo=2," in"))&" "&$T$18&" "&ROUND(cal!AB40,1)&IF(UnitsNo=1," cm",IF(UnitsNo=2," in"))&" (Type 4)" -> Luchtverhitter hoogte 0 cm breedte 0 cm lengte 0 cm (Type 4)
B40: *Geluidsvermogen gemeten volgens ISO 3741:2010 | N40: =cal!P46 -> v2025-07-25
B41: **Geluidsdruk bij een aangenomen ruimtedemping van 16 dB(A)

Sheet EN (hidden)
B3: Formulary
H4: Hydraulic mix: | I4: 0 | J4: 0 | K4: 0
B5: Conditions | H5: Device - Ventilator - Utilization: | I5: 0 | J5: 0 | K5: 0
B7: Temperatures | Q7: Copy all data
B8: Heating: | G8: Cooling: | Q8: SI-units
B9: Supply water | E9: =cal!E9 -> 55 | G9: =B9 -> Supply water | K9: =cal!K9 -> 16 | M9: Unit conversion | Q9: Imperial-units
B10: Return water | E10: =cal!E10 -> 45 | G10: =B10 -> Return water | K10: =cal!K10 -> 18
B11: Entering air | E11: =cal!E11 -> 20 | G11: =B11 -> Entering air | K11: =cal!K11 -> 27
G12: Relative humidity | K12: =cal!K12 -> 50%
B15: Speed level | C15: Control voltage [V] | D15: =CONCATENATE("Heat output ",ROUND(E9,0),"/",ROUND(E10,0),"/",ROUND(E11,0)," ["&IF(cal!$W$4=1,"kW",IF(cal!$W$4=2,"MBH"))&"]") -> Heat output 55/45/20 [kW] | E15: ="Water flowrate, heating ["&IF(cal!$W$4=1,"l/h",IF(cal!$W$4=2,"GPM"))&"]" -> Water flowrate, heating [l/h] | F15: ="Watersided pressure loss ["&IF(cal!$W$4=1,"kPa",IF(cal!$W$4=2,"inH2O"))&"]" -> Watersided pressure loss [kPa] | G15: =CONCATENATE("Sens. cooling capacity ",ROUND(K9,0),"/",ROUND(K10,0),"/",ROUND(K11,0)," ["&IF(cal!$W$4=1,"kW",IF(cal!$W$4=2,"Btu/h"))&"]") -> Sens. cooling capacity 16/18/27 [kW] | H15: =CONCATENATE("Tot. cooling capacity ",ROUND(K9,0),"/",ROUND(K10,0),"/",ROUND(K11,0)," ["&IF(cal!$W$4=1,"kW",IF(cal!$W$4=2,"Btu/h"))&"]") -> Tot. cooling capacity 16/18/27 [kW] | I15: ="RPM ["&IF(UnitsNo=1,"u/min",IF(UnitsNo=2,"RPM"))&"]" -> RPM [u/min] | J15: ="Watersided pressure loss ["&IF(cal!$W$4=1,"kPa",IF(cal!$W$4=2,"inH2O"))&"]" -> Watersided pressure loss [kPa] | K15: Sound pressure ** [dB(A)] | L15: Sound power * [dB(A)] | M15: Electrical power [W] | N15: ="Air flowrate ["&IF(cal!$W$4=1,"m³/h",IF(cal!$W$4=2,"CFM"))&"]" -> Air flowrate [m³/h] | O15: ="Air exhaust temp. heating ["&IF(cal!$W$4=1,"°C",IF(cal!$W$4=2,"°F"))&"]" -> Air exhaust temp. heating [°C] | P15: ="Air exhaust temp. cooling ["&IF(cal!$W$4=1,"°C",IF(cal!$W$4=2,"°F"))&"]" -> Air exhaust temp. cooling [°C]
B16: =cal!$X$1&" "&$T$16&" "&ROUND(cal!X22,1)&IF(UnitsNo=1," cm",IF(UnitsNo=2," in"))& " "&$T$17&" "&ROUND(cal!Z22,1)&IF(UnitsNo=1," cm",IF(UnitsNo=2," in"))&" "&$T$18&" "&ROUND(cal!AB22,1)&IF(UnitsNo=1," cm",IF(UnitsNo=2," in"))&" (Type "&cal!W16&""&cal!AC22&")" -> Luchtverhitter height 41 cm width 41 cm length 43 cm (Type 021) | R16: Temp. | T16: height
R17: heating! | T17: width
R18: cooling! | T18: length
B22: =cal!$X$1&" "&$T$16&" "&ROUND(cal!X28,1)&IF(UnitsNo=1," cm",IF(UnitsNo=2," in"))& " "&$T$17&" "&ROUND(cal!Z28,1)&IF(UnitsNo=1," cm",IF(UnitsNo=2," in"))&" "&$T$18&" "&ROUND(cal!AB28,1)&IF(UnitsNo=1," cm",IF(UnitsNo=2," in"))&" (Type "&cal!W16&""&cal!AC28&")" -> Luchtverhitter height 41 cm width 41 cm length 43 cm (Type 031)
B28: =cal!$X$1&" "&$T$16&" "&ROUND(cal!X34,1)&IF(UnitsNo=1," cm",IF(UnitsNo=2," in"))& " "&$T$17&" "&ROUND(cal!Z34,1)&IF(UnitsNo=1," cm",IF(UnitsNo=2," in"))&" "&$T$18&" "&ROUND(cal!AB34,1)&IF(UnitsNo=1," cm",IF(UnitsNo=2," in"))&" (Type 3)" -> Luchtverhitter height 0 cm width 0 cm length 0 cm (Type 3)
B34: =cal!$X$1&" "&$T$16&" "&ROUND(cal!X40,1)&IF(UnitsNo=1," cm",IF(UnitsNo=2," in"))& " "&$T$17&" "&ROUND(cal!Z40,1)&IF(UnitsNo=1," cm",IF(UnitsNo=2," in"))&" "&$T$18&" "&ROUND(cal!AB40,1)&IF(UnitsNo=1," cm",IF(UnitsNo=2," in"))&" (Type 4)" -> Luchtverhitter height 0 cm width 0 cm length 0 cm (Type 4)
B40: *Sound power according to ISO 3741:2010 | N40: =cal!P46 -> v2025-07-25
B41: **Sound pressure with an assumed room damping of 16 dB(A)

Sheet DE (hidden)
B3: Eingabefelder
H4: Hydraulikgemisch:
B5: Auslegungsrandbedingungen | H5: Gerät - Lüfter - Ausfürhung: | I5: 0 | J5: 0 | K5: 0
B7: Temperaturen | Q7: Kopieren Sie alle daten
B8: Heizen: | G8: Kühlen: | Q8: SI-einheiten
B9: ="Vorlauf wasser" -> Vorlauf wasser | E9: =cal!E9 -> 55 | G9: =B9 -> Vorlauf wasser | K9: =cal!K9 -> 16 | M9: Einheiten | Q9: Imperiale-einheiten
B10: ="Rücklauf wasser" -> Rücklauf wasser | E10: =cal!E10 -> 45 | G10: =B10 -> Rücklauf wasser | K10: =cal!K10 -> 18
B11: ="Raum" -> Raum | E11: =cal!E11 -> 20 | G11: =B11 -> Raum | K11: =cal!K11 -> 27
G12: Relative Luftfeuchtigkeit | K12: =cal!K12 -> 50%
B15: Drehzahlstufe | C15: Regelspannung [V] | D15: =CONCATENATE("Wärmeleistung ",ROUND(E9,0),"/",ROUND(E10,0),"/",ROUND(E11,0)," ["&IF(cal!$W$4=1,"kW",IF(cal!$W$4=2,"MBH"))&"]") -> Wärmeleistung 55/45/20 [kW] | E15: ="Heizmittelstrom ["&IF(cal!$W$4=1,"l/h",IF(cal!$W$4=2,"GPM"))&"]" -> Heizmittelstrom [l/h] | F15: ="zug. wassers. Druckverlust ["&IF(cal!$W$4=1,"kPa",IF(cal!$W$4=2,"inH2O"))&"]" -> zug. wassers. Druckverlust [kPa] | G15: =CONCATENATE("Sens. Kälteleistung ",ROUND(K9,0),"/",ROUND(K10,0),"/",ROUND(K11,0)," ["&IF(cal!$W$4=1,"kW",IF(cal!$W$4=2,"Btu/h"))&"]") -> Sens. Kälteleistung 16/18/27 [kW] | H15: =CONCATENATE("Tot. Kälteleistung ",ROUND(K9,0),"/",ROUND(K10,0),"/",ROUND(K11,0)," ["&IF(cal!$W$4=1,"kW",IF(cal!$W$4=2,"Btu/h"))&"]") -> Tot. Kälteleistung 16/18/27 [kW] | I15: ="Drehzahl ["&IF(UnitsNo=1,"u/min",IF(UnitsNo=2,"RPM"))&"]" -> Drehzahl [u/min] | J15: ="zug. wassers. Druckverlust ["&IF(cal!$W$4=1,"kPa",IF(cal!$W$4=2,"inH2O"))&"]" -> zug. wassers. Druckverlust [kPa] | K15: Schalldruckpegel ** [dB(A)] | L15: Schallleistungspegel * [dB(A)] | M15: Leistungsaufnahme [W] | N15: ="Luftvolumenstrom ["&IF(cal!$W$4=1,"m³/h",IF(cal!$W$4=2,"CFM"))&"]" -> Luftvolumenstrom [m³/h] | O15: ="Luftaustrittstemp. Heizung ["&IF(cal!$W$4=1,"°C",IF(cal!$W$4=2,"°F"))&"]" -> Luftaustrittstemp. Heizung [°C] | P15: ="Luftaustrittstemp. Kühlung ["&IF(cal!$W$4=1,"°C",IF(cal!$W$4=2,"°F"))&"]" -> Luftaustrittstemp. Kühlung [°C]
B16: =cal!$X$1&" "&$T$16&" "&ROUND(cal!X22,1)&IF(UnitsNo=1," cm",IF(UnitsNo=2," in"))& " "&$T$17&" "&ROUND(cal!Z22,1)&IF(UnitsNo=1," cm",IF(UnitsNo=2," in"))&" "&$T$18&" "&ROUND(cal!AB22,1)&IF(UnitsNo=1," cm",IF(UnitsNo=2," in"))&" (Type "&cal!W16&""&cal!AC22&")" -> Luchtverhitter höhe 41 cm breite 41 cm länge 43 cm (Type 021) | R16: Temp. | T16: höhe
R17: heizen! | T17: breite
R18: kühlen! | T18: länge
B22: =cal!$X$1&" "&$T$16&" "&ROUND(cal!X28,1)&IF(UnitsNo=1," cm",IF(UnitsNo=2," in"))& " "&$T$17&" "&ROUND(cal!Z28,1)&IF(UnitsNo=1," cm",IF(UnitsNo=2," in"))&" "&$T$18&" "&ROUND(cal!AB28,1)&IF(UnitsNo=1," cm",IF(UnitsNo=2," in"))&" (Type "&cal!W16&""&cal!AC28&")" -> Luchtverhitter höhe 41 cm breite 41 cm länge 43 cm (Type 031)
B28: =cal!$X$1&" "&$T$16&" "&ROUND(cal!X34,1)&IF(UnitsNo=1," cm",IF(UnitsNo=2," in"))& " "&$T$17&" "&ROUND(cal!Z34,1)&IF(UnitsNo=1," cm",IF(UnitsNo=2," in"))&" "&$T$18&" "&ROUND(cal!AB34,1)&IF(UnitsNo=1," cm",IF(UnitsNo=2," in"))&" (Type 3)" -> Luchtverhitter höhe 0 cm breite 0 cm länge 0 cm (Type 3)
B34: =cal!$X$1&" "&$T$16&" "&ROUND(cal!X40,1)&IF(UnitsNo=1," cm",IF(UnitsNo=2," in"))& " "&$T$17&" "&ROUND(cal!Z40,1)&IF(UnitsNo=1," cm",IF(UnitsNo=2," in"))&" "&$T$18&" "&ROUND(cal!AB40,1)&IF(UnitsNo=1," cm",IF(UnitsNo=2," in"))&" (Type 4)" -> Luchtverhitter höhe 0 cm breite 0 cm länge 0 cm (Type 4)
B40: *Schallleistungspegel nach ISO 3741:2010
B41: **Schalldruckpegel bei angenommener Raumdämpfung von 16 dB(A)

Sheet FR (hidden)
B3: Formulaire
H4: Mélange hydraulique:
B5: Conditions | H5: Appareil - Ventilateur - Version: | I5: 0 | J5: 0 | K5: 0
B7: Températures | Q7: Copier toutes des données
B8: Chauffer: | G8: Refroidir: | Q8: Unités-SI
B9: ="Entrée de l'eau" -> Entrée de l'eau | E9: =cal!E9 -> 55 | G9: =B9 -> Entrée de l'eau | K9: =cal!K9 -> 16 | M9: Système unitaire | Q9: Unités-Impériales
B10: ="Retour de l'eau" -> Retour de l'eau | E10: =cal!E10 -> 45 | G10: =B10 -> Retour de l'eau | K10: =cal!K10 -> 18
B11: ="Ambiante" -> Ambiante | E11: =cal!E11 -> 20 | G11: =B11 -> Ambiante | K11: =cal!K11 -> 27
G12: Humidité relative | K12: =cal!K12 -> 50%
B15: Niveau de vitesse | C15: Voltage [V] | D15: =CONCATENATE("Puissance de cha. ",ROUND(E9,0),"/",ROUND(E10,0),"/",ROUND(E11,0)," ["&IF(cal!$W$4=1,"kW",IF(cal!$W$4=2,"MBH"))&"]") -> Puissance de cha. 55/45/20 [kW] | E15: ="Débit d'eau, chauffer ["&IF(cal!$W$4=1,"l/h",IF(cal!$W$4=2,"GPM"))&"]" -> Débit d'eau, chauffer [l/h] | F15: ="Perte de charge ["&IF(cal!$W$4=1,"kPa",IF(cal!$W$4=2,"inH2O"))&"]" -> Perte de charge [kPa] | G15: =CONCATENATE("Puissance sens. de refr. ",ROUND(K9,0),"/",ROUND(K10,0),"/",ROUND(K11,0)," ["&IF(cal!$W$4=1,"kW",IF(cal!$W$4=2,"Btu/h"))&"]") -> Puissance sens. de refr. 16/18/27 [kW] | H15: =CONCATENATE("Puissance tot. de refr. ",ROUND(K9,0),"/",ROUND(K10,0),"/",ROUND(K11,0)," ["&IF(cal!$W$4=1,"kW",IF(cal!$W$4=2,"Btu/h"))&"]") -> Puissance tot. de refr. 16/18/27 [kW] | I15: ="Vitesse ["&IF(UnitsNo=1,"u/min",IF(UnitsNo=2,"RPM"))&"]" -> Vitesse [u/min] | J15: ="Perte de charge ["&IF(cal!$W$4=1,"kPa",IF(cal!$W$4=2,"inH2O"))&"]" -> Perte de charge [kPa] | K15: Pression sonore ** [dB(A)] | L15: Puissance sonore * [dB(A)] | M15: Puissance absorbée [W] | N15: ="Débit d'air ["&IF(cal!$W$4=1,"m³/h",IF(cal!$W$4=2,"CFM"))&"]" -> Débit d'air [m³/h] | O15: ="Temp. de la sortie d'air cha. ["&IF(cal!$W$4=1,"°C",IF(cal!$W$4=2,"°F"))&"]" -> Temp. de la sortie d'air cha. [°C] | P15: ="Temp. de la sortie d'air refr. ["&IF(cal!$W$4=1,"°C",IF(cal!$W$4=2,"°F"))&"]" -> Temp. de la sortie d'air refr. [°C]
B16: =cal!$X$1&" "&$T$16&" "&ROUND(cal!X22,1)&IF(UnitsNo=1," cm",IF(UnitsNo=2," in"))& " "&$T$17&" "&ROUND(cal!Z22,1)&IF(UnitsNo=1," cm",IF(UnitsNo=2," in"))&" "&$T$18&" "&ROUND(cal!AB22,1)&IF(UnitsNo=1," cm",IF(UnitsNo=2," in"))&" (Type "&cal!W16&""&cal!AC22&")" -> Luchtverhitter hauteur 41 cm largeur 41 cm longueur 43 cm (Type 021) | R16: Temp. | T16: hauteur
R17: chauf.! | T17: largeur
R18: refr.! | T18: longueur
B22: =cal!$X$1&" "&$T$16&" "&ROUND(cal!X28,1)&IF(UnitsNo=1," cm",IF(UnitsNo=2," in"))& " "&$T$17&" "&ROUND(cal!Z28,1)&IF(UnitsNo=1," cm",IF(UnitsNo=2," in"))&" "&$T$18&" "&ROUND(cal!AB28,1)&IF(UnitsNo=1," cm",IF(UnitsNo=2," in"))&" (Type "&cal!W16&""&cal!AC28&")" -> Luchtverhitter hauteur 41 cm largeur 41 cm longueur 43 cm (Type 031)
B28: =cal!$X$1&" "&$T$16&" "&ROUND(cal!X34,1)&IF(UnitsNo=1," cm",IF(UnitsNo=2," in"))& " "&$T$17&" "&ROUND(cal!Z34,1)&IF(UnitsNo=1," cm",IF(UnitsNo=2," in"))&" "&$T$18&" "&ROUND(cal!AB34,1)&IF(UnitsNo=1," cm",IF(UnitsNo=2," in"))&" (Type 3)" -> Luchtverhitter hauteur 0 cm largeur 0 cm longueur 0 cm (Type 3)
B34: =cal!$X$1&" "&$T$16&" "&ROUND(cal!X40,1)&IF(UnitsNo=1," cm",IF(UnitsNo=2," in"))& " "&$T$17&" "&ROUND(cal!Z40,1)&IF(UnitsNo=1," cm",IF(UnitsNo=2," in"))&" "&$T$18&" "&ROUND(cal!AB40,1)&IF(UnitsNo=1," cm",IF(UnitsNo=2," in"))&" (Type 4)" -> Luchtverhitter hauteur 0 cm largeur 0 cm longueur 0 cm (Type 4)
B40: *Puissance sonore testé selon ISO 3741:2010 | N40: =cal!P46 -> v2025-07-25
B41: **Pression sonore avec une atténuation ambiante du 16 dB(A)

Sheet NR (hidden)
B3: Modell
H4: Væske blanding: | I4: 0 | J4: 0 | K4: 0
B5: Conditions | H5: Modell: | I5: 0 | J5: 0 | K5: 0
B7: Temperaturer | Q7: Kopier alle data
B8: Varme: | G8: Kjøling: | Q8: SI-enheter
B9: Tur vann | C9: 0 | D9: 0 | E9: =cal!E9 -> 55 | G9: =B9 -> Tur vann | K9: =cal!K9 -> 16 | M9: Enhetssystem | Q9: Imperiale-enheter
B10: Retur vann | C10: 0 | D10: 0 | E10: =cal!E10 -> 45 | G10: =B10 -> Retur vann | K10: =cal!K10 -> 18
B11: Rom | C11: 0 | D11: 0 | E11: =cal!E11 -> 20 | G11: =B11 -> Rom | K11: =cal!K11 -> 27
G12: Relativ fuktighet | K12: =cal!K12 -> 50%
B15: Hastighet | C15: Styresignal [V] | D15: =CONCATENATE("Varme effekt ",ROUND(E9,0),"/",ROUND(E10,0),"/",ROUND(E11,0)," ["&IF(cal!$W$4=1,"kW",IF(cal!$W$4=2,"MBH"))&"]") -> Varme effekt 55/45/20 [kW] | E15: ="Vannmengde, varme ["&IF(cal!$W$4=1,"l/h",IF(cal!$W$4=2,"GPM"))&"]" -> Vannmengde, varme [l/h] | F15: ="Trykktap ["&IF(cal!$W$4=1,"kPa",IF(cal!$W$4=2,"ftH2O"))&"]" -> Trykktap [kPa] | G15: =CONCATENATE("Sens. Kjøling effekt * ",ROUND(K9,0),"/",ROUND(K10,0),"/",ROUND(K11,0)," ["&IF(cal!$W$4=1,"kW",IF(cal!$W$4=2,"Btu/h"))&"]") -> Sens. Kjøling effekt * 16/18/27 [kW] | H15: =CONCATENATE("Tot. Kjøle effekt ",ROUND(K9,0),"/",ROUND(K10,0),"/",ROUND(K11,0)," ["&IF(cal!$W$4=1,"kW",IF(cal!$W$4=2,"Btu/h"))&"]") -> Tot. Kjøle effekt 16/18/27 [kW] | I15: ="hastighet ["&IF(UnitsNo=1,"u/min",IF(UnitsNo=2,"RPM"))&"]" -> hastighet [u/min] | J15: =F15 -> Trykktap [kPa] | K15: Lydtrykk ** [dB(A)] | L15: Lydeffekt * [dB(A)] | M15: Elektrisk effekt [W] | N15: ="Luftmengde ["&IF(cal!$W$4=1,"m³/h",IF(cal!$W$4=2,"CFM"))&"]" -> Luftmengde [m³/h] | O15: ="Uitblaastemp. verwarming ["&IF(cal!$W$4=1,"°C",IF(cal!$W$4=2,"°F"))&"]" -> Uitblaastemp. verwarming [°C] | P15: ="Uitblaastemp. koeling ["&IF(cal!$W$4=1,"°C",IF(cal!$W$4=2,"°F"))&"]" -> Uitblaastemp. koeling [°C]
B16: =cal!$X$1&" "&$T$16&" "&ROUND(cal!X22,1)&IF(UnitsNo=1," cm",IF(UnitsNo=2," in"))& " "&$T$17&" "&ROUND(cal!Z22,1)&IF(UnitsNo=1," cm",IF(UnitsNo=2," in"))&" "&$T$18&" "&ROUND(cal!AB22,1)&IF(UnitsNo=1," cm",IF(UnitsNo=2," in"))&" (Type "&cal!W16&""&cal!AC22&")" -> Luchtverhitter høyde 41 cm bredde 41 cm lengde 43 cm (Type 021) | R16: Temp. | T16: høyde
R17: varme! | T17: bredde
R18: kjøling! | T18: lengde
B22: =cal!$X$1&" "&$T$16&" "&ROUND(cal!X28,1)&IF(UnitsNo=1," cm",IF(UnitsNo=2," in"))& " "&$T$17&" "&ROUND(cal!Z28,1)&IF(UnitsNo=1," cm",IF(UnitsNo=2," in"))&" "&$T$18&" "&ROUND(cal!AB28,1)&IF(UnitsNo=1," cm",IF(UnitsNo=2," in"))&" (Type "&cal!W16&""&cal!AC28&")" -> Luchtverhitter høyde 41 cm bredde 41 cm lengde 43 cm (Type 031)
B28: =cal!$X$1&" "&$T$16&" "&ROUND(cal!X34,1)&IF(UnitsNo=1," cm",IF(UnitsNo=2," in"))& " "&$T$17&" "&ROUND(cal!Z34,1)&IF(UnitsNo=1," cm",IF(UnitsNo=2," in"))&" "&$T$18&" "&ROUND(cal!AB34,1)&IF(UnitsNo=1," cm",IF(UnitsNo=2," in"))&" (Type 3)" -> Luchtverhitter høyde 0 cm bredde 0 cm lengde 0 cm (Type 3)
B34: =cal!$X$1&" "&$T$16&" "&ROUND(cal!X40,1)&IF(UnitsNo=1," cm",IF(UnitsNo=2," in"))& " "&$T$17&" "&ROUND(cal!Z40,1)&IF(UnitsNo=1," cm",IF(UnitsNo=2," in"))&" "&$T$18&" "&ROUND(cal!AB40,1)&IF(UnitsNo=1," cm",IF(UnitsNo=2," in"))&" (Type 4)" -> Luchtverhitter høyde 0 cm bredde 0 cm lengde 0 cm (Type 4)
B40: **Sound power according to ISO 3741:2010 | N40: =cal!P46 -> v2025-07-25
B41: ***Sound pressure with an assumed room damping of 16 dB(A)

Sheet SP (hidden)
B7: Temperaturas | Q7: Copiar todos los datos
B8: Calefacción: | G8: Enfriamiento: | Q8: Unidades-SI
B9: Agua impulsión | C9: 0 | D9: 0 | E9: =cal!E9 -> 55 | G9: =B9 -> Agua impulsión | K9: =cal!K9 -> 16 | M9: Convers. de unidades | Q9: Unidades-Imperial
B10: Agua retorno | C10: 0 | D10: 0 | E10: =cal!E10 -> 45 | G10: =B10 -> Agua retorno | K10: =cal!K10 -> 18
B11: Ambiente | C11: 0 | D11: 0 | E11: =cal!E11 -> 20 | G11: =B11 -> Ambiente | K11: =cal!K11 -> 27
G12: Humedad relativa | K12: =cal!K12 -> 50%
B15: Nivel de velocidad | C15: Voltaje control [V] | D15: =CONCATENATE("Emisión calefacción ",ROUND(E9,0),"/",ROUND(E10,0),"/",ROUND(E11,0)," ["&IF(UnitsNo=1,"kW",IF(UnitsNo=2,"MBH"))&"]") -> Emisión calefacción 55/45/20 [kW] | E15: ="Caudal de agua, calefacción ["&IF(1=1,"l/h",IF(UnitsNo=2,"GPM"))&"]" -> Caudal de agua, calefacción [l/h] | F15: ="Pérdida de carga del agua ["&IF(UnitsNo=1,"kPa",IF(UnitsNo=2,"ftH2O"))&"]" -> Pérdida de carga del agua [kPa] | G15: =CONCATENATE("Emisión sensible Frío * ",ROUND(K9,0),"/",ROUND(K10,0),"/",ROUND(K11,0)," ["&IF(UnitsNo=1,"kW",IF(UnitsNo=2,"Btu/h"))&"]") -> Emisión sensible Frío * 16/18/27 [kW] | H15: =CONCATENATE("Emisión total Frío ",ROUND(K9,0),"/",ROUND(K10,0),"/",ROUND(K11,0)," ["&IF(UnitsNo=1,"kW",IF(UnitsNo=2,"Btu/h"))&"]") -> Emisión total Frío 16/18/27 [kW] | I15: ="Velocidad ["&IF(UnitsNo=1,"u/min",IF(UnitsNo=2,"RPM"))&"]" -> Velocidad [u/min] | J15: =F15 -> Pérdida de carga del agua [kPa] | K15: Presión sonora ** [dB(A)] | L15: Potencia sonora * [dB(A)] | M15: Potencia eléctrica absorbida [W] | N15: ="Caudal de aire ["&IF(UnitsNo=1,"m³/h",IF(UnitsNo=2,"CFM"))&"]" -> Caudal de aire [m³/h] | O15: ="Temperatura salida de aire calefacción ["&IF(UnitsNo=1,"°C",IF(UnitsNo=2,"°F"))&"]" -> Temperatura salida de aire calefacción [°C] | P15: ="Temperatura salida de aire refrigeración (bulbo seco) ["&IF(UnitsNo=1,"°C",IF(UnitsNo=2,"°F"))&"]" -> Temperatura salida de aire refrigeración (bulbo seco) [°C]
B16: =cal!$X$1&" "&$T$16&" "&ROUND(cal!X22,1)&IF(UnitsNo=1," cm",IF(UnitsNo=2," in"))& " "&$T$17&" "&ROUND(cal!Z22,1)&IF(UnitsNo=1," cm",IF(UnitsNo=2," in"))&" "&$T$18&" "&ROUND(cal!AB22,1)&IF(UnitsNo=1," cm",IF(UnitsNo=2," in"))&" (Type "&cal!W16&""&cal!AC22&")" -> Luchtverhitter altura 41 cm ancho 41 cm longitud 43 cm (Type 021) | R16: Temp. | T16: altura
R17: calefac. | T17: ancho
R18: enfria. | T18: longitud
B22: =cal!$X$1&" "&$T$16&" "&ROUND(cal!X28,1)&IF(UnitsNo=1," cm",IF(UnitsNo=2," in"))& " "&$T$17&" "&ROUND(cal!Z28,1)&IF(UnitsNo=1," cm",IF(UnitsNo=2," in"))&" "&$T$18&" "&ROUND(cal!AB28,1)&IF(UnitsNo=1," cm",IF(UnitsNo=2," in"))&" (Type "&cal!W16&""&cal!AC28&")" -> Luchtverhitter altura 41 cm ancho 41 cm longitud 43 cm (Type 031)
B28: =cal!$X$1&" "&$T$16&" "&ROUND(cal!X34,1)&IF(UnitsNo=1," cm",IF(UnitsNo=2," in"))& " "&$T$17&" "&ROUND(cal!Z34,1)&IF(UnitsNo=1," cm",IF(UnitsNo=2," in"))&" "&$T$18&" "&ROUND(cal!AB34,1)&IF(UnitsNo=1," cm",IF(UnitsNo=2," in"))&" (Type 3)" -> Luchtverhitter altura 0 cm ancho 0 cm longitud 0 cm (Type 3)
B34: =cal!$X$1&" "&$T$16&" "&ROUND(cal!X40,1)&IF(UnitsNo=1," cm",IF(UnitsNo=2," in"))& " "&$T$17&" "&ROUND(cal!Z40,1)&IF(UnitsNo=1," cm",IF(UnitsNo=2," in"))&" "&$T$18&" "&ROUND(cal!AB40,1)&IF(UnitsNo=1," cm",IF(UnitsNo=2," in"))&" (Type 4)" -> Luchtverhitter altura 0 cm ancho 0 cm longitud 0 cm (Type 4)
B40: **Potencia sonora de acuerdo a ISO 3741:2010 | N40: =cal!P46 -> v2025-07-25
B41: ***Presión sonora asumiendo una reducción de la estancia de 16 dB(A)

Sheet SW (hidden)
B3: Formulary
H4: Hydraulic mix: | I4: 0 | J4: 0 | K4: 0
B5: Conditions | H5: Device - Ventilator - Utilization: | I5: 0 | J5: 0 | K5: 0
B7: Temperaturer | Q7: Kopiera all data
B8: Värme: | G8: Kyla: | Q8: SI-enheter
B9: Tillopp | E9: =cal!E9 -> 55 | G9: =B9 -> Tillopp | K9: =cal!K9 -> 16 | M9: Enhetssystem | Q9: Imperiella-enheter
B10: Retur | E10: =cal!E10 -> 45 | G10: =B10 -> Retur | K10: =cal!K10 -> 18
B11: Rum (torr) | E11: =cal!E11 -> 20 | G11: =B11 -> Rum (torr) | K11: =cal!K11 -> 27
G12: rel. Fuktighet | K12: =cal!K12 -> 50%
B15: Fläkthastighet | C15: Spänning, Fläkt [V] | D15: =CONCATENATE("Värme effekt ",ROUND(E9,0),"/",ROUND(E10,0),"/",ROUND(E11,0)," ["&IF(cal!$W$4=1,"kW",IF(cal!$W$4=2,"MBH"))&"]") -> Värme effekt 55/45/20 [kW] | E15: ="Vattenflöde, värme ["&IF(cal!$W$4=1,"l/h",IF(cal!$W$4=2,"GPM"))&"]" -> Vattenflöde, värme [l/h] | F15: ="Tryckfall, vatten ["&IF(cal!$W$4=1,"kPa",IF(cal!$W$4=2,"inH2O"))&"]" -> Tryckfall, vatten [kPa] | G15: =CONCATENATE("Märkbar kylkapacitet ",ROUND(K9,0),"/",ROUND(K10,0),"/",ROUND(K11,0)," ["&IF(cal!$W$4=1,"kW",IF(cal!$W$4=2,"Btu/h"))&"]") -> Märkbar kylkapacitet 16/18/27 [kW] | H15: =CONCATENATE("Total kylkapacitet ",ROUND(K9,0),"/",ROUND(K10,0),"/",ROUND(K11,0)," ["&IF(cal!$W$4=1,"kW",IF(cal!$W$4=2,"Btu/h"))&"]") -> Total kylkapacitet 16/18/27 [kW] | I15: ="Hastighet ["&IF(UnitsNo=1,"u/min",IF(UnitsNo=2,"RPM"))&"]" -> Hastighet [u/min] | J15: =F15 -> Tryckfall, vatten [kPa] | K15: Ljudtryck ** [dB(A)] | L15: Ljudeffekt * [dB(A)] | M15: Effektförbrukning [W] | N15: ="Luftflöde ["&IF(cal!$W$4=1,"m³/h",IF(cal!$W$4=2,"CFM"))&"]" -> Luftflöde [m³/h] | O15: ="Luftavgassystemets värming ["&IF(cal!$W$4=1,"°C",IF(cal!$W$4=2,"°F"))&"]" -> Luftavgassystemets värming [°C] | P15: ="Luftavgassystemets kylning ["&IF(cal!$W$4=1,"°C",IF(cal!$W$4=2,"°F"))&"]" -> Luftavgassystemets kylning [°C]
B16: =cal!$X$1&" "&$T$16&" "&ROUND(cal!X22,1)&IF(UnitsNo=1," cm",IF(UnitsNo=2," in"))& " "&$T$17&" "&ROUND(cal!Z22,1)&IF(UnitsNo=1," cm",IF(UnitsNo=2," in"))&" "&$T$18&" "&ROUND(cal!AB22,1)&IF(UnitsNo=1," cm",IF(UnitsNo=2," in"))&" (Typ "&cal!W16&""&cal!AC22&")" -> Luchtverhitter höjd 41 cm djup 41 cm längd 43 cm (Typ 021) | R16: Temp. | T16: höjd
R17: värme! | T17: djup
R18: kyla! | T18: längd
B22: =cal!$X$1&" "&$T$16&" "&ROUND(cal!X28,1)&IF(UnitsNo=1," cm",IF(UnitsNo=2," in"))& " "&$T$17&" "&ROUND(cal!Z28,1)&IF(UnitsNo=1," cm",IF(UnitsNo=2," in"))&" "&$T$18&" "&ROUND(cal!AB28,1)&IF(UnitsNo=1," cm",IF(UnitsNo=2," in"))&" (Typ "&cal!W16&""&cal!AC28&")" -> Luchtverhitter höjd 41 cm djup 41 cm längd 43 cm (Typ 031)
B28: =cal!$X$1&" "&$T$16&" "&ROUND(cal!X34,1)&IF(UnitsNo=1," cm",IF(UnitsNo=2," in"))& " "&$T$17&" "&ROUND(cal!Z34,1)&IF(UnitsNo=1," cm",IF(UnitsNo=2," in"))&" "&$T$18&" "&ROUND(cal!AB34,1)&IF(UnitsNo=1," cm",IF(UnitsNo=2," in"))&" (Typ 3)" -> Luchtverhitter höjd 0 cm djup 0 cm längd 0 cm (Typ 3)
B34: =cal!$X$1&" "&$T$16&" "&ROUND(cal!X40,1)&IF(UnitsNo=1," cm",IF(UnitsNo=2," in"))& " "&$T$17&" "&ROUND(cal!Z40,1)&IF(UnitsNo=1," cm",IF(UnitsNo=2," in"))&" "&$T$18&" "&ROUND(cal!AB40,1)&IF(UnitsNo=1," cm",IF(UnitsNo=2," in"))&" (Typ 4)" -> Luchtverhitter höjd 0 cm djup 0 cm längd 0 cm (Typ 4)
B40: *Ljudeffekt enligt ISO 3741: 2010 | N40: =cal!P46 -> v2025-07-25
B41: **Ljudtryck med en antagen rumsdämpning på 16 dB (A)

Sheet TS (hidden)
B3: Invulformulier
H4: Směs vody: | I4: 0 | J4: 0 | K4: 0
B5: Randvoorwaarden | H5: Těleso - Ventilátor - Verze: | I5: 0 | J5: 0 | K5: 0
B7: Teploty | Q7: Kopírovat všechna data
B8: Topení: | G8: Chlazení: | Q8: Mezinárodní (Sl)
B9: ="Voda na přívodu" -> Voda na přívodu | E9: =cal!E9 -> 55 | G9: =B9 -> Voda na přívodu | K9: =cal!K9 -> 16 | M9: Převod jednotek | Q9: Imperiální
B10: ="Voda na zpátečce" -> Voda na zpátečce | E10: =cal!E10 -> 45 | G10: =B10 -> Voda na zpátečce | K10: =cal!K10 -> 18
B11: "Suchá" teplota vzduchu | E11: =cal!E11 -> 20 | G11: =B11 -> "Suchá" teplota vzduchu | K11: =cal!K11 -> 27
G12: Relativní vlhkost | K12: =cal!K12 -> 50%
B15: Rychlost | C15: Ovládací napětí [V] | D15: =CONCATENATE("Výkon Topení ",ROUND(E9,0),"/",ROUND(E10,0),"/",ROUND(E11,0)," ["&IF(UnitsNo=1,"kW",IF(UnitsNo=2,"MBH"))&"]") -> Výkon Topení 55/45/20 [kW] | E15: ="Průtok vody, topení ["&IF(UnitsNo=1,"l/h",IF(UnitsNo=2,"GPM"))&"]" -> Průtok vody, topení [l/h] | F15: ="Tlaková ztráta ["&IF(UnitsNo=1,"kPa",IF(UnitsNo=2,"inH2O"))&"]" -> Tlaková ztráta [kPa] | G15: =CONCATENATE("Výkon chlazení Znatelný ",ROUND(K9,0),"/",,ROUND(K10,0),"/",,ROUND(K11,0)," ["&IF(UnitsNo=1,"kW",IF(UnitsNo=2,"Btu/h"))&"]") -> Výkon chlazení Znatelný 16/18/27 [kW] | H15: =CONCATENATE("Výkon chlazení Celkový ",,ROUND(K9,0),"/",,ROUND(K10,0),"/",,ROUND(K11,0)," ["&IF(UnitsNo=1,"kW",IF(UnitsNo=2,"Btu/h"))&"]") -> Výkon chlazení Celkový 16/18/27 [kW] | I15: ="Rychlost ["&IF(UnitsNo=1,"u/min",IF(UnitsNo=2,"RPM"))&"]" -> Rychlost [u/min] | J15: =F15 -> Tlaková ztráta [kPa] | K15: Akustický tlak ** [dB(A)] | L15: Akustický výkon * [dB(A)] | M15: Elektrický výkon [W] | N15: ="Průtok vzduchu ["&IF(UnitsNo=1,"m³/h",IF(UnitsNo=2,"CFM"))&"]" -> Průtok vzduchu [m³/h] | O15: ="Výfuková teplota vzduchu top. ["&IF(UnitsNo=1,"°C",IF(UnitsNo=2,"°F"))&"]" -> Výfuková teplota vzduchu top. [°C] | P15: ="Výfuková teplota vzduchu chlaz. ["&IF(UnitsNo=1,"°C",IF(UnitsNo=2,"°F"))&"]" -> Výfuková teplota vzduchu chlaz. [°C]
B16: =cal!$X$1&" "&$T$16&", "&ROUND(cal!X22,1)&IF(UnitsNo=1," cm",IF(UnitsNo=2," in"))& ", "&$T$17&" "&ROUND(cal!Z22,1)&IF(UnitsNo=1," cm",IF(UnitsNo=2," in"))&", "&$T$18&" "&ROUND(cal!AB22,1)&IF(UnitsNo=1," cm",IF(UnitsNo=2," in"))&" (Typ "&cal!W16&""&cal!AC22&")" -> Luchtverhitter Výška, 41 cm, Šířka 41 cm, Délka 43 cm (Typ 021) | R16: Teploty | T16: Výška
R17: topení! | T17: Šířka
R18: chlazení! | T18: Délka
B22: =cal!$X$1&" "&$T$16&" "&ROUND(cal!X28,1)&IF(UnitsNo=1," cm",IF(UnitsNo=2," in"))& " "&$T$17&" "&ROUND(cal!Z28,1)&IF(UnitsNo=1," cm",IF(UnitsNo=2," in"))&" "&$T$18&" "&ROUND(cal!AB28,1)&IF(UnitsNo=1," cm",IF(UnitsNo=2," in"))&" (Typ "&cal!W16&""&cal!AC28&")" -> Luchtverhitter Výška 41 cm Šířka 41 cm Délka 43 cm (Typ 031)
B28: =cal!$X$1&" "&$T$16&" "&ROUND(cal!X34,1)&IF(UnitsNo=1," cm",IF(UnitsNo=2," in"))& " "&$T$17&" "&ROUND(cal!Z34,1)&IF(UnitsNo=1," cm",IF(UnitsNo=2," in"))&" "&$T$18&" "&ROUND(cal!AB34,1)&IF(UnitsNo=1," cm",IF(UnitsNo=2," in"))&" (Typ 3)" -> Luchtverhitter Výška 0 cm Šířka 0 cm Délka 0 cm (Typ 3)
B34: =cal!$X$1&" "&$T$16&" "&ROUND(cal!X40,1)&IF(UnitsNo=1," cm",IF(UnitsNo=2," in"))& " "&$T$17&" "&ROUND(cal!Z40,1)&IF(UnitsNo=1," cm",IF(UnitsNo=2," in"))&" "&$T$18&" "&ROUND(cal!AB40,1)&IF(UnitsNo=1," cm",IF(UnitsNo=2," in"))&" (Typ 4)" -> Luchtverhitter Výška 0 cm Šířka 0 cm Délka 0 cm (Typ 4)
B40: *Akustický tlak podle ISO 3741:2010 | N40: =cal!P46 -> v2025-07-25
B41: **Akustický výkon s předpokládaným útlumem místnosti 16 dB (A).

Sheet ExtraTaal1 (hidden)
B3: Formulary
H4: Hydraulic mix: | I4: 0 | J4: 0 | K4: 0
B5: Conditions | H5: Device - Ventilator - Utilization: | I5: 0 | J5: 0 | K5: 0
B7: Temperatures | Q7: Copy all data
B8: Heating: | G8: Cooling: | Q8: SI-units
B9: Supply water | E9: =cal!E9 -> 55 | G9: =B9 -> Supply water | K9: =cal!K9 -> 16 | M9: Unit conversion | Q9: Imperial-units
B10: Return water | E10: =cal!E10 -> 45 | G10: =B10 -> Return water | K10: =cal!K10 -> 18
B11: Entering air | E11: =cal!E11 -> 20 | G11: =B11 -> Entering air | K11: =cal!K11 -> 27
G12: Relative humidity | K12: =cal!K12 -> 50%
B15: Speed level | C15: Control voltage [V] | D15: =CONCATENATE("Heat output ",ROUND(E9,0),"/",ROUND(E10,0),"/",ROUND(E11,0)," ["&IF(cal!$W$4=1,"W",IF(cal!$W$4=2,"Btu/h"))&"]") -> Heat output 55/45/20 [W] | E15: ="Water flowrate, heating ["&IF(cal!$W$4=1,"l/h",IF(cal!$W$4=2,"GPM"))&"]" -> Water flowrate, heating [l/h] | F15: ="Watersided pressure loss ["&IF(cal!$W$4=1,"kPa",IF(cal!$W$4=2,"inH2O"))&"]" -> Watersided pressure loss [kPa] | G15: =CONCATENATE("Sens. cooling capacity ",ROUND(K9,0),"/",ROUND(K10,0),"/",ROUND(K11,0)," ["&IF(cal!$W$4=1,"W",IF(cal!$W$4=2,"Btu/h"))&"]") -> Sens. cooling capacity 16/18/27 [W] | H15: =CONCATENATE("Tot. cooling capacity ",ROUND(K9,0),"/",ROUND(K10,0),"/",ROUND(K11,0)," ["&IF(cal!$W$4=1,"W",IF(cal!$W$4=2,"Btu/h"))&"]") -> Tot. cooling capacity 16/18/27 [W] | I15: ="Water flowrate, cooling ["&IF(cal!$W$4=1,"l/h",IF(cal!$W$4=2,"GPM"))&"]" -> Water flowrate, cooling [l/h] | J15: ="Watersided pressure loss ["&IF(cal!$W$4=1,"kPa",IF(cal!$W$4=2,"inH2O"))&"]" -> Watersided pressure loss [kPa] | K15: Sound pressure ** [dB(A)] | L15: Sound power * [dB(A)] | M15: Electrical power [W] | N15: ="Air flowrate ["&IF(cal!$W$4=1,"m³/h",IF(cal!$W$4=2,"CFM"))&"]" -> Air flowrate [m³/h] | O15: ="Air exhaust temp. heating ["&IF(cal!$W$4=1,"°C",IF(cal!$W$4=2,"°F"))&"]" -> Air exhaust temp. heating [°C] | P15: ="Air exhaust temp. cooling ["&IF(cal!$W$4=1,"°C",IF(cal!$W$4=2,"°F"))&"]" -> Air exhaust temp. cooling [°C]
B16: =cal!$X$1&" "&$T$16&" "&ROUND(cal!X22,1)&IF(UnitsNo=1," cm",IF(UnitsNo=2," in"))& " "&$T$17&" "&ROUND(cal!Z22,1)&IF(UnitsNo=1," cm",IF(UnitsNo=2," in"))&" "&$T$18&" "&ROUND(cal!AB22,1)&IF(UnitsNo=1," cm",IF(UnitsNo=2," in"))&" (Type 1)" -> Luchtverhitter height 41 cm width 41 cm length 43 cm (Type 1) | R16: Temp. | T16: height
R17: heating! | T17: width
R18: cooling! | T18: length
B22: =cal!$X$1&" "&$T$16&" "&ROUND(cal!X28,1)&IF(UnitsNo=1," cm",IF(UnitsNo=2," in"))& " "&$T$17&" "&ROUND(cal!Z28,1)&IF(UnitsNo=1," cm",IF(UnitsNo=2," in"))&" "&$T$18&" "&ROUND(cal!AB28,1)&IF(UnitsNo=1," cm",IF(UnitsNo=2," in"))&" (Type 2)" -> Luchtverhitter height 41 cm width 41 cm length 43 cm (Type 2)
B28: =cal!$X$1&" "&$T$16&" "&ROUND(cal!X34,1)&IF(UnitsNo=1," cm",IF(UnitsNo=2," in"))& " "&$T$17&" "&ROUND(cal!Z34,1)&IF(UnitsNo=1," cm",IF(UnitsNo=2," in"))&" "&$T$18&" "&ROUND(cal!AB34,1)&IF(UnitsNo=1," cm",IF(UnitsNo=2," in"))&" (Type 3)" -> Luchtverhitter height 0 cm width 0 cm length 0 cm (Type 3)
B34: =cal!$X$1&" "&$T$16&" "&ROUND(cal!X40,1)&IF(UnitsNo=1," cm",IF(UnitsNo=2," in"))& " "&$T$17&" "&ROUND(cal!Z40,1)&IF(UnitsNo=1," cm",IF(UnitsNo=2," in"))&" "&$T$18&" "&ROUND(cal!AB40,1)&IF(UnitsNo=1," cm",IF(UnitsNo=2," in"))&" (Type 4)" -> Luchtverhitter height 0 cm width 0 cm length 0 cm (Type 4)
B40: *Sound power according to ISO 3741:2010 | N40: =cal!P46 -> v2025-07-25
B41: **Sound pressure with an assumed room damping of 8dB(A)

Sheet ExtraTaal2 (hidden)
B3: Formulary
H4: Hydraulic mix: | I4: 0 | J4: 0 | K4: 0
B5: Conditions | H5: Device - Ventilator - Utilization: | I5: 0 | J5: 0 | K5: 0
B7: Temperatures | Q7: Copy all data
B8: Heating: | G8: Cooling: | Q8: SI-units
B9: Supply water | E9: =cal!E9 -> 55 | G9: =B9 -> Supply water | K9: =cal!K9 -> 16 | M9: Unit conversion | Q9: Imperial-units
B10: Return water | E10: =cal!E10 -> 45 | G10: =B10 -> Return water | K10: =cal!K10 -> 18
B11: Entering air | E11: =cal!E11 -> 20 | G11: =B11 -> Entering air | K11: =cal!K11 -> 27
G12: Relative humidity | K12: =cal!K12 -> 50%
B15: Speed level | C15: Control voltage [V] | D15: =CONCATENATE("Heat output ",ROUND(E9,0),"/",ROUND(E10,0),"/",ROUND(E11,0)," ["&IF(cal!$W$4=1,"W",IF(cal!$W$4=2,"Btu/h"))&"]") -> Heat output 55/45/20 [W] | E15: ="Water flowrate, heating ["&IF(cal!$W$4=1,"l/h",IF(cal!$W$4=2,"GPM"))&"]" -> Water flowrate, heating [l/h] | F15: ="Watersided pressure loss ["&IF(cal!$W$4=1,"kPa",IF(cal!$W$4=2,"inH2O"))&"]" -> Watersided pressure loss [kPa] | G15: =CONCATENATE("Sens. cooling capacity ",ROUND(K9,0),"/",ROUND(K10,0),"/",ROUND(K11,0)," ["&IF(cal!$W$4=1,"W",IF(cal!$W$4=2,"Btu/h"))&"]") -> Sens. cooling capacity 16/18/27 [W] | H15: =CONCATENATE("Tot. cooling capacity ",ROUND(K9,0),"/",ROUND(K10,0),"/",ROUND(K11,0)," ["&IF(cal!$W$4=1,"W",IF(cal!$W$4=2,"Btu/h"))&"]") -> Tot. cooling capacity 16/18/27 [W] | I15: ="Water flowrate, cooling ["&IF(cal!$W$4=1,"l/h",IF(cal!$W$4=2,"GPM"))&"]" -> Water flowrate, cooling [l/h] | J15: ="Watersided pressure loss ["&IF(cal!$W$4=1,"kPa",IF(cal!$W$4=2,"inH2O"))&"]" -> Watersided pressure loss [kPa] | K15: Sound pressure ** [dB(A)] | L15: Sound power * [dB(A)] | M15: Electrical power [W] | N15: ="Air flowrate ["&IF(cal!$W$4=1,"m³/h",IF(cal!$W$4=2,"CFM"))&"]" -> Air flowrate [m³/h] | O15: ="Air exhaust temp. heating ["&IF(cal!$W$4=1,"°C",IF(cal!$W$4=2,"°F"))&"]" -> Air exhaust temp. heating [°C] | P15: ="Air exhaust temp. cooling ["&IF(cal!$W$4=1,"°C",IF(cal!$W$4=2,"°F"))&"]" -> Air exhaust temp. cooling [°C]
B16: =cal!$X$1&" "&$T$16&" "&ROUND(cal!X22,1)&IF(UnitsNo=1," cm",IF(UnitsNo=2," in"))& " "&$T$17&" "&ROUND(cal!Z22,1)&IF(UnitsNo=1," cm",IF(UnitsNo=2," in"))&" "&$T$18&" "&ROUND(cal!AB22,1)&IF(UnitsNo=1," cm",IF(UnitsNo=2," in"))&" (Type 1)" -> Luchtverhitter height 41 cm width 41 cm length 43 cm (Type 1) | R16: Temp. | T16: height
R17: heating! | T17: width
R18: cooling! | T18: length
B22: =cal!$X$1&" "&$T$16&" "&ROUND(cal!X28,1)&IF(UnitsNo=1," cm",IF(UnitsNo=2," in"))& " "&$T$17&" "&ROUND(cal!Z28,1)&IF(UnitsNo=1," cm",IF(UnitsNo=2," in"))&" "&$T$18&" "&ROUND(cal!AB28,1)&IF(UnitsNo=1," cm",IF(UnitsNo=2," in"))&" (Type 2)" -> Luchtverhitter height 41 cm width 41 cm length 43 cm (Type 2)
B28: =cal!$X$1&" "&$T$16&" "&ROUND(cal!X34,1)&IF(UnitsNo=1," cm",IF(UnitsNo=2," in"))& " "&$T$17&" "&ROUND(cal!Z34,1)&IF(UnitsNo=1," cm",IF(UnitsNo=2," in"))&" "&$T$18&" "&ROUND(cal!AB34,1)&IF(UnitsNo=1," cm",IF(UnitsNo=2," in"))&" (Type 3)" -> Luchtverhitter height 0 cm width 0 cm length 0 cm (Type 3)
B34: =cal!$X$1&" "&$T$16&" "&ROUND(cal!X40,1)&IF(UnitsNo=1," cm",IF(UnitsNo=2," in"))& " "&$T$17&" "&ROUND(cal!Z40,1)&IF(UnitsNo=1," cm",IF(UnitsNo=2," in"))&" "&$T$18&" "&ROUND(cal!AB40,1)&IF(UnitsNo=1," cm",IF(UnitsNo=2," in"))&" (Type 4)" -> Luchtverhitter height 0 cm width 0 cm length 0 cm (Type 4)
B40: *Sound power according to ISO 3741:2010 | N40: =cal!P46 -> v2025-07-25
B41: **Sound pressure with an assumed room damping of 8dB(A)

Sheet ExtraTaal3 (hidden)
B3: Formulary
H4: Hydraulic mix: | I4: 0 | J4: 0 | K4: 0
B5: Conditions | H5: Device - Ventilator - Utilization: | I5: 0 | J5: 0 | K5: 0
B7: Temperatures | Q7: Copy all data
B8: Heating: | G8: Cooling: | Q8: SI-units
B9: Supply water | E9: =cal!E9 -> 55 | G9: =B9 -> Supply water | K9: =cal!K9 -> 16 | M9: Unit conversion | Q9: Imperial-units
B10: Return water | E10: =cal!E10 -> 45 | G10: =B10 -> Return water | K10: =cal!K10 -> 18
B11: Entering air | E11: =cal!E11 -> 20 | G11: =B11 -> Entering air | K11: =cal!K11 -> 27
G12: Relative humidity | K12: =cal!K12 -> 50%
B15: Speed level | C15: Control voltage [V] | D15: =CONCATENATE("Heat output ",ROUND(E9,0),"/",ROUND(E10,0),"/",ROUND(E11,0)," ["&IF(cal!$W$4=1,"W",IF(cal!$W$4=2,"Btu/h"))&"]") -> Heat output 55/45/20 [W] | E15: ="Water flowrate, heating ["&IF(cal!$W$4=1,"l/h",IF(cal!$W$4=2,"GPM"))&"]" -> Water flowrate, heating [l/h] | F15: ="Watersided pressure loss ["&IF(cal!$W$4=1,"kPa",IF(cal!$W$4=2,"inH2O"))&"]" -> Watersided pressure loss [kPa] | G15: =CONCATENATE("Sens. cooling capacity ",ROUND(K9,0),"/",ROUND(K10,0),"/",ROUND(K11,0)," ["&IF(cal!$W$4=1,"W",IF(cal!$W$4=2,"Btu/h"))&"]") -> Sens. cooling capacity 16/18/27 [W] | H15: =CONCATENATE("Tot. cooling capacity ",ROUND(K9,0),"/",ROUND(K10,0),"/",ROUND(K11,0)," ["&IF(cal!$W$4=1,"W",IF(cal!$W$4=2,"Btu/h"))&"]") -> Tot. cooling capacity 16/18/27 [W] | I15: ="Water flowrate, cooling ["&IF(cal!$W$4=1,"l/h",IF(cal!$W$4=2,"GPM"))&"]" -> Water flowrate, cooling [l/h] | J15: ="Watersided pressure loss ["&IF(cal!$W$4=1,"kPa",IF(cal!$W$4=2,"inH2O"))&"]" -> Watersided pressure loss [kPa] | K15: Sound pressure ** [dB(A)] | L15: Sound power * [dB(A)] | M15: Electrical power [W] | N15: ="Air flowrate ["&IF(cal!$W$4=1,"m³/h",IF(cal!$W$4=2,"CFM"))&"]" -> Air flowrate [m³/h] | O15: ="Air exhaust temp. heating ["&IF(cal!$W$4=1,"°C",IF(cal!$W$4=2,"°F"))&"]" -> Air exhaust temp. heating [°C] | P15: ="Air exhaust temp. cooling ["&IF(cal!$W$4=1,"°C",IF(cal!$W$4=2,"°F"))&"]" -> Air exhaust temp. cooling [°C]
B16: =cal!$X$1&" "&$T$16&" "&ROUND(cal!X22,1)&IF(UnitsNo=1," cm",IF(UnitsNo=2," in"))& " "&$T$17&" "&ROUND(cal!Z22,1)&IF(UnitsNo=1," cm",IF(UnitsNo=2," in"))&" "&$T$18&" "&ROUND(cal!AB22,1)&IF(UnitsNo=1," cm",IF(UnitsNo=2," in"))&" (Type 1)" -> Luchtverhitter height 41 cm width 41 cm length 43 cm (Type 1) | R16: Temp. | T16: height
R17: heating! | T17: width
R18: cooling! | T18: length
B22: =cal!$X$1&" "&$T$16&" "&ROUND(cal!X28,1)&IF(UnitsNo=1," cm",IF(UnitsNo=2," in"))& " "&$T$17&" "&ROUND(cal!Z28,1)&IF(UnitsNo=1," cm",IF(UnitsNo=2," in"))&" "&$T$18&" "&ROUND(cal!AB28,1)&IF(UnitsNo=1," cm",IF(UnitsNo=2," in"))&" (Type 2)" -> Luchtverhitter height 41 cm width 41 cm length 43 cm (Type 2)
B28: =cal!$X$1&" "&$T$16&" "&ROUND(cal!X34,1)&IF(UnitsNo=1," cm",IF(UnitsNo=2," in"))& " "&$T$17&" "&ROUND(cal!Z34,1)&IF(UnitsNo=1," cm",IF(UnitsNo=2," in"))&" "&$T$18&" "&ROUND(cal!AB34,1)&IF(UnitsNo=1," cm",IF(UnitsNo=2," in"))&" (Type 3)" -> Luchtverhitter height 0 cm width 0 cm length 0 cm (Type 3)
B34: =cal!$X$1&" "&$T$16&" "&ROUND(cal!X40,1)&IF(UnitsNo=1," cm",IF(UnitsNo=2," in"))& " "&$T$17&" "&ROUND(cal!Z40,1)&IF(UnitsNo=1," cm",IF(UnitsNo=2," in"))&" "&$T$18&" "&ROUND(cal!AB40,1)&IF(UnitsNo=1," cm",IF(UnitsNo=2," in"))&" (Type 4)" -> Luchtverhitter height 0 cm width 0 cm length 0 cm (Type 4)
B40: *Sound power according to ISO 3741:2010 | N40: =cal!P46 -> v2025-07-25
B41: **Sound pressure with an assumed room damping of 8dB(A)
